Workbook

Sheet DATA
D1: .
I2: WELCOME TO INKYS FOOD STORAGE PLANNER by SCOTTY THE BACKYARD RENEGADE | Z2: THANK YOU FOR DOWNLOADING INKYS FOOD STORAGE PLANNER, A LONG OR SHORT TERM PROVISIONS / INVENTORY PLANNER. TO START, IN THE YELLOW BOXES ADJUST "ADULTS SERVED", "MONTHS" AND "REQUIRED SERVINGS FOR ONE ADULT PER WEEK" TO ESTABLISH YOUR GOALS. ON THE LEFT SIDE OF THE TABLE ENTER YOUR CATERGORY, CLASS, ITEM, PACKAGE SIZE, AND SERVING SIZE. NEW ITEMS WITH EXISING "CATERGORY" AND "CLASS" WILL BE DISPLAYED IN THE "OVERVIEW" AND "CLASS" CHARTS. EXPERIENCED USERS MAY ADD A PIVOT CHART FOR A NEW "CATERGORY" ON THE "PIVOT" SHEET AND COPY TO THE "DATA" SHEET. NEXT ENTER AMOUNT OF PACKS "STORED" HOW MANY "SVG/PAK, AND ALLOCATED "SVG/WK" FOR EACH ADULT. IN COLUMN X, FILL IN "REQUIRED" SERVINGS FOR ONE ADULT PER WEEK". WHEN YOUR ALLOCATION (COLUMN J) IS EQUAL TO OR EXCEEDS YOUR REQUIREMENTS, THE TEXT IN THE "TOTAL" ROW WILL TURN FROM RED AND THE BOX WILL TURN GREEN, AS WILL THE "REQUIRED SERVINGS FOR ONE ADULT PER WEEK" (COLUMN X) YOU CAN SEE THE PROGRESS OF EACH ITEM IN COLUMN N - Q AS YOU ADD "STORED" PACKS. THE "TOTAL" ROW AT THE BOTTOM OF EACH CATERGORY WILL ALSO SHOW SOLID GREEN WHEN YOU HAVE STORED ENGOUH PRODUCT TO MEET YOUR PLAN. THIS IS A PROTECTED DATA SHEET / NO PASSWORD BEST VIEWED AT 130% THANKS FOR DOWNLOADING AND LET ME KNOW WHAT CHANGES OR UPDATES YOU WOULD LIKE TO SEE! THANKS, SCOTTY. THE BACKYARD RENEGADE.
H3: FOR BEST FULL SCREEN VIEWING SET ZOOM TO 130% PROTECTED SHEET / NO PASSWORD SET
C4: PLEASE STOP BY | E4: =HYPERLINK("http://www.backyardrenegade.com/downloads/index.htm","WWW.BACKYARDRENEGADE.COM/DOWNLOADS") -> WWW.BACKYARDRENEGADE.COM/DOWNLOADS | J4: FOR UPDATES ON THIS AND ALL OF MY OTHER PROJECTS, I EXPECT THIS PROGRAM TO GO THROUGH A LOT OF CHANGES SO STAY IN TOUCH!
C5: I AM PREPARING MANY PROJECTS INCLUDING BUT NOT LIMITED TO SILK SCREEN, LEATHER WORK, DESIGN AND BUILD A SMALL FAMILY BOAT, WELDING, AUTO AND MOTOR DIAGNOSTICS AND REPAIR.
C6: FROM SOFTWARE TO WEBSITES TO BOAT PLANS, I HAVE ALWAYS TRIED TO MAKE SOMETHING AVAILABLE FOR EVERYONE. INKYS FOOD STORAGE PROGRAM IS FREEWARE AND I AM HAPPY TO FREELY PASS IT ALONG…
C7: HOWEVER IF YOU WOULD LIKE TO HELP WITH THE BOAT BUILD FUND OR SUPPORT ANY OF MY OTHER ON LINE PROJECTS CHECK OUT THE LINKS OVER THERE.>>>>>>>>>>>>>>>>>>>>>>>>
H20: FILL IN ADULTS SERVED | L20: FILL IN MONTHS
B21: V 3_1 2022 0802 1600 COPYRIGHT 2022 | H21: ADULTS SERVED | J21: 4 | L21: MONTHS | N21: 24
C23: ENTER CATERGORY, CLASS, DISC, PACKAGE INFO | H23: STOCK, PACK, SVGS/WK/1 | K23: "REFRESH ALL" 2 UPDATE CHARTS OR "AUTO REFRESH" SEE NOTES.*
B24: LINE | C24: CATERGORY | D24: CLASS | E24: ITEM | F24: PAK | G24: SVG | H24: STORED | I24: SVG/PAK | J24: SVG/WK2 | K24: QUOTA | L24: STORED2 | M24: DEFICIT | N24: 25% | O24: 50% | P24: 75% | Q24: 100%
B25: 1 | C25: BEVERAGES | D25: General | E25: GATORAID PURPLE | F25: 8x16oz | G25: 1CAN | H25: 60 | I25: 8 | J25: 3 | K25: =IFERROR((J25/I25)/7,0)*(SUMPRODUCT($N$21*30))*$J$21 -> 154.2857143 | L25: =IFERROR(H25,0) -> 60 | M25: =IFERROR(K25-L25,0) -> 94.28571429 | N25: =IFERROR(L25/K25,0)*4 -> 1.555555556 | O25: =IFERROR(L25/K25,0)*2 -> 0.7777777778 | P25: =IFERROR(L25/K25,0)*1.34 -> 0.5211111111 | Q25: =IFERROR(L25/K25,0) -> 0.3888888889 | S25: Required servings for one adult per week | X25: 48
B26: 2 | C26: BEVERAGES | D26: General | E26: GATORAID ORANGE | F26: 8x16oz | G26: 1CAN | H26: 104 | I26: 8 | J26: 3 | K26: =IFERROR((J26/I26)/7,0)*(SUMPRODUCT($N$21*30))*$J$21 -> 154.2857143 | L26: =IFERROR(H26,0) -> 104 | M26: =IFERROR(K26-L26,0) -> 50.28571429 | N26: 2.696296296 | O26: =IFERROR(L26/K26,0)*2 -> 1.348148148 | P26: 0.9032592593 | Q26: 0.6740740741 | S26: Total servings to meet plans goal | X26: =IFERROR($J$21*$N$21,0)*X25 -> 4608
B27: 3 | C27: BEVERAGES | D27: General | E27: GATORAID PUNCH | F27: 8x16oz | G27: 1CAN | H27: 78 | I27: 8 | J27: 3 | K27: 154.2857143 | L27: =IFERROR(H27,0) -> 78 | M27: 76.28571429 | N27: 2.022222222 | O27: 1.011111111 | P27: 0.6774444444 | Q27: 0.5055555556
B28: 4 | C28: BEVERAGES | D28: General | E28: GATORAID FROST | F28: 8x16oz | G28: 1CAN | H28: 16 | I28: 8 | J28: 1 | K28: 51.42857143 | L28: 16 | M28: 35.42857143 | N28: 1.244444444 | O28: 0.6222222222 | P28: 0.4168888889 | Q28: 0.3111111111
B29: 5 | C29: BEVERAGES | D29: General | E29: SODA GINGER | F29: 24x12oz | G29: 1CAN | H29: 17 | I29: 24 | J29: 3 | K29: 51.42857143 | L29: 17 | M29: 34.42857143 | N29: 1.322222222 | O29: 0.6611111111 | P29: 0.4429444444 | Q29: 0.3305555556
B30: 6 | C30: BEVERAGES | D30: General | E30: MUSCLE MILK | F30: 2lbs | G30: 1SCOOP | H30: 10 | I30: 32 | J30: 2 | K30: 25.71428571 | L30: 10 | M30: 15.71428571 | N30: 1.555555556 | O30: 0.7777777778 | P30: 0.5211111111 | Q30: 0.3888888889
B31: 7 | C31: BEVERAGES | D31: General | E31: MJSCLE MILK CHOC | F31: 2lbs | G31: 1SCOOP | H31: 20 | I31: 32 | J31: 2 | K31: 25.71428571 | L31: 20 | M31: 5.714285714 | N31: 3.111111111 | O31: 1.555555556 | P31: 1.042222222 | Q31: 0.7777777778
B32: 8 | C32: BEVERAGES | D32: General | E32: MUSCLE MILK STRAW | F32: 1LB | G32: 1SCOOP | H32: 24 | I32: 32 | J32: 5 | K32: 64.28571429 | L32: 24 | M32: 40.28571429 | N32: 1.493333333 | O32: 0.7466666667 | P32: 0.5002666667 | Q32: 0.3733333333 | Z32: SOCIAL MEDIA AND DOWNLOADS
B33: 9 | C33: BEVERAGES | D33: General | E33: WATER (FRESH) | F33: 5GAL | G33: 80Z | H33: 24 | I33: 180 | J33: 25 | K33: 57.14285714 | L33: 24 | M33: 33.14285714 | N33: 1.68 | O33: 0.84 | P33: 0.5628 | Q33: 0.42 | Z33: BACKYARDRENEGADE.COM
B34: 10 | H34: 0 | I34: 0 | J34: 0 | K34: 0 | L34: 0 | M34: 0 | N34: 0 | O34: 0 | P34: 0 | Q34: 0 | Z34: TWITCH.TV/BACKYARDRENEGADE
B35: 11 | H35: 0 | I35: 0 | J35: 0 | K35: =IFERROR((J35/I35)/7,0)*(SUMPRODUCT($N$21*30))*$J$21 -> 0 | L35: =IFERROR(H35,0) -> 0 | M35: =IFERROR(K35-L35,0) -> 0 | N35: =IFERROR(L35/K35,0)*4 -> 0 | O35: =IFERROR(L35/K35,0)*2 -> 0 | P35: =IFERROR(L35/K35,0)*1.34 -> 0 | Q35: =IFERROR(L35/K35,0) -> 0 | Z35: YOUTUBE.COM/BACKYARDRENEGADE
B36: 12 | H36: 0 | I36: 0 | J36: 0 | K36: 0 | L36: 0 | M36: 0 | N36: 0 | O36: 0 | P36: 0 | Q36: 0 | Z36: =HYPERLINK("http://www.backyardrenegade.com/downloads/index.htm","CLICK HERE FOR UPDATES AND DOWNLOADS") -> CLICK HERE FOR UPDATES AND DOWNLOADS
B37: 13 | H37: 0 | I37: 0 | J37: 0 | K37: 0 | L37: 0 | M37: 0 | N37: 0 | O37: 0 | P37: 0 | Q37: 0
B38: 14 | H38: 0 | I38: 0 | J38: 0 | K38: 0 | L38: 0 | M38: 0 | N38: 0 | O38: 0 | P38: 0 | Q38: 0 | Z38: DONATIONS ARE ACCEPTED… :)
B39: 15 | C39: BEVERAGES | E39: TOTAL | H39: =SUBTOTAL(109,H25:H38) -> 353 | J39: =SUBTOTAL(109,J25:J38) -> 47 | K39: =SUM(K25:K38)*1.0001 -> 738.6452857 | L39: =SUM(L25:L38)*1.0001 -> 353.0353 | M39: =SUBTOTAL(109,M25:M38) -> 385.5714286 | N39: 1.911798839 | O39: 0.9558994197 | P39: 0.6404526112 | Q39: 0.4779497099 | Z39: CASHAPP AT [$BACKYARDRENEGADE]
B40: 16 | J40: 0 | Z40: VENMO AT [@BACKYARDRENEGADE]
B41: 17 | C41: BREAD | D41: BAKING | E41: BREAD MIX | F41: 1 loaf | G41: 5 | H41: 40 | I41: 8 | J41: 2 | K41: =IFERROR((J41/I41)/7,0)*(SUMPRODUCT($N$21*30))*$J$21 -> 102.8571429 | L41: =IFERROR(H41,0) -> 40 | M41: =IFERROR(K41-L41,0) -> 62.85714286 | N41: =IFERROR(L41/K41,0)*4 -> 1.555555556 | O41: =IFERROR(L41/K41,0)*2 -> 0.7777777778 | P41: =IFERROR(L41/K41,0)*1.34 -> 0.5211111111 | Q41: =IFERROR(L41/K41,0) -> 0.3888888889 | S41: Required servings for one adult per week | X41: 14 | Z41: AND THE BOAT BUILDING FUND IS AT:
B42: 18 | C42: BREAD | D42: DINNER | E42: STICKY RICE | F42: 5 lbs | G42: 1CAN | H42: 90 | I42: 8 | J42: 3 | K42: =IFERROR((J42/I42)/7,0)*(SUMPRODUCT($N$21*30))*$J$21 -> 154.2857143 | L42: =IFERROR(H42,0) -> 90 | M42: =IFERROR(K42-L42,0) -> 64.28571429 | N42: 2.333333333 | O42: 1.166666667 | P42: 0.7816666667 | Q42: 0.5833333333 | S42: Total servings to meet plans goal | X42: =IFERROR($J$21*$N$21,0)*X41 -> 1344 | Z42: STREAMLABS.COM/BACKYARDRENEGADE1
B43: 19 | C43: BREAD | D43: BAKING | E43: FLOUR | F43: 5 lbs | G43: 1CAN | H43: 50 | I43: 8 | J43: 1 | K43: 51.42857143 | L43: 50 | M43: 1.428571429 | N43: 3.888888889 | O43: 1.944444444 | P43: 1.302777778 | Q43: 0.9722222222
B44: 20 | C44: BREAD | D44: SNACKS | E44: POP CORN KERNELS | F44: 1 lb | G44: 1CAN | H44: 24 | I44: 24 | J44: 1 | K44: 17.14285714 | L44: 24 | M44: -6.857142857 | N44: 5.6 | O44: 2.8 | P44: 1.876 | Q44: 1.4
B45: 21 | C45: BREAD | D45: DINNER | E45: RICE FLOWER | F45: 9 CAN | G45: 1CAN | H45: 40 | I45: 32 | J45: 3 | K45: 38.57142857 | L45: 40 | M45: -1.428571429 | N45: 4.148148148 | O45: 2.074074074 | P45: 1.38962963 | Q45: 1.037037037
B46: 22 | C46: BREAD | D46: BAKING | E46: YEAST PACKETS | F46: 1 PAK | G46: 8/pack | H46: 8 | I46: 32 | J46: 1 | K46: 12.85714286 | L46: 8 | M46: 4.857142857 | N46: 2.488888889 | O46: 1.244444444 | P46: 0.8337777778 | Q46: 0.6222222222
B47: 23 | H47: 0 | I47: 0 | J47: 0 | K47: 0 | L47: 0 | M47: 0 | N47: 0 | O47: 0 | P47: 0 | Q47: 0
B48: 24 | H48: 0 | I48: 0 | J48: 0 | K48: 0 | L48: 0 | M48: 0 | N48: 0 | O48: 0 | P48: 0 | Q48: 0
B49: 25 | H49: 0 | I49: 0 | J49: 0 | K49: 0 | L49: 0 | M49: 0 | N49: 0 | O49: 0 | P49: 0 | Q49: 0
B50: 26 | H50: 0 | I50: 0 | J50: 0 | K50: 0 | L50: 0 | M50: 0 | N50: 0 | O50: 0 | P50: 0 | Q50: 0
B51: 27 | H51: 0 | I51: 0 | J51: 0 | K51: 0 | L51: 0 | M51: 0 | N51: 0 | O51: 0 | P51: 0 | Q51: 0
B52: 28 | H52: 0 | I52: 0 | J52: 0 | K52: =IFERROR((J52/I52)/7,0)*(SUMPRODUCT($N$21*30))*$J$21 -> 0 | L52: =IFERROR(H52,0) -> 0 | M52: =IFERROR(K52-L52,0) -> 0 | N52: =IFERROR(L52/K52,0)*4 -> 0 | O52: =IFERROR(L52/K52,0)*2 -> 0 | P52: =IFERROR(L52/K52,0)*1.34 -> 0 | Q52: =IFERROR(L52/K52,0) -> 0
B53: 29 | H53: 0 | I53: 0 | J53: 0 | K53: 0 | L53: 0 | M53: 0 | N53: 0 | O53: 0 | P53: 0 | Q53: 0
B54: 30 | H54: 0 | I54: 0 | J54: 0 | K54: 0 | L54: 0 | M54: 0 | N54: 0 | O54: 0 | P54: 0 | Q54: 0
B55: 31 | C55: BREAD | E55: TOTAL | H55: =SUBTOTAL(109,H41:H54) -> 252 | J55: =SUBTOTAL(109,J40:J54) -> 11 | K55: =SUM(K41:K54)*1.0001 -> 377.1805714 | L55: =SUM(L41:L54)*1.0001 -> 252.0252 | M55: =SUBTOTAL(109,M41:M54) -> 125.1428571 | N55: 2.672727273 | O55: 1.336363636 | P55: 0.8953636364 | Q55: 0.6681818182
B56: 32
B57: 33 | C57: CONDIMENTS | D57: DAILY | E57: MAYONAISE | F57: 2 CAN | G57: 5 | H57: 30 | I57: 64 | J57: 4 | K57: =IFERROR((J57/I57)/7,0)*(SUMPRODUCT($N$21*30))*$J$21 -> 25.71428571 | L57: =IFERROR(H57,0) -> 30 | M57: =IFERROR(K57-L57,0) -> -4.285714286 | N57: =IFERROR(L57/K57,0)*4 -> 4.666666667 | O57: =IFERROR(L57/K57,0)*2 -> 2.333333333 | P57: =IFERROR(L57/K57,0)*1.34 -> 1.563333333 | Q57: =IFERROR(L57/K57,0) -> 1.166666667 | S57: Required servings for one adult per week | X57: 21
B58: 34 | C58: CONDIMENTS | D58: DAILY | E58: KETSUP | F58: 3 CAN | G58: 1CAN | H58: 20 | I58: 50 | J58: 3 | K58: =IFERROR((J58/I58)/7,0)*(SUMPRODUCT($N$21*30))*$J$21 -> 24.68571429 | L58: =IFERROR(H58,0) -> 20 | M58: =IFERROR(K58-L58,0) -> 4.685714286 | N58: 3.240740741 | O58: 1.62037037 | P58: 1.085648148 | Q58: 0.8101851852 | S58: Total servings to meet plans goal | X58: =IFERROR($J$21*$N$21,0)*X57 -> 2016
B59: 35 | C59: CONDIMENTS | D59: DAILY | E59: MUSTARD | F59: 4 CAN | G59: 1CAN | H59: 5 | I59: 100 | J59: 1 | K59: 4.114285714 | L59: 5 | M59: -0.8857142857 | N59: 4.861111111 | O59: 2.430555556 | P59: 1.628472222 | Q59: 1.215277778
B60: 36 | C60: CONDIMENTS | D60: DAILY | E60: RELISH | F60: 5 CAN | G60: 1CAN | H60: 16 | I60: 42 | J60: 2 | K60: 19.59183673 | L60: 16 | M60: 3.591836735 | N60: 3.266666667 | O60: 1.633333333 | P60: 1.094333333 | Q60: 0.8166666667
B61: 37 | C61: CONDIMENTS | D61: DAILY | E61: BLUE CHEESE DRES | F61: 9 CAN | G61: 1CAN | H61: 35 | I61: 32 | J61: 2 | K61: 25.71428571 | L61: 35 | M61: -9.285714286 | N61: 5.444444444 | O61: 2.722222222 | P61: 1.823888889 | Q61: 1.361111111
B62: 38 | C62: CONDIMENTS | D62: DAILY | E62: SALT IODIZED | F62: 11 CAN | G62: 1CAN | H62: 24 | I62: 100 | J62: 7 | K62: 28.8 | L62: 24 | M62: 4.8 | N62: 3.333333333 | O62: 1.666666667 | P62: 1.116666667 | Q62: 0.8333333333
B63: 39 | H63: 0 | I63: 0 | J63: 0 | K63: 0 | L63: 0 | M63: 0 | N63: 0 | O63: 0 | P63: 0 | Q63: 0
B64: 40 | H64: 0 | I64: 0 | J64: 0 | K64: 0 | L64: 0 | M64: 0 | N64: 0 | O64: 0 | P64: 0 | Q64: 0
B65: 41 | H65: 0 | I65: 0 | J65: 0 | K65: 0 | L65: 0 | M65: 0 | N65: 0 | O65: 0 | P65: 0 | Q65: 0
B66: 42 | H66: 0 | I66: 0 | J66: 0 | K66: 0 | L66: 0 | M66: 0 | N66: 0 | O66: 0 | P66: 0 | Q66: 0
B67: 43 | H67: 0 | I67: 0 | J67: 0 | K67: =IFERROR((J67/I67)/7,0)*(SUMPRODUCT($N$21*30))*$J$21 -> 0 | L67: =IFERROR(H67,0) -> 0 | M67: =IFERROR(K67-L67,0) -> 0 | N67: =IFERROR(L67/K67,0)*4 -> 0 | O67: =IFERROR(L67/K67,0)*2 -> 0 | P67: =IFERROR(L67/K67,0)*1.34 -> 0 | Q67: =IFERROR(L67/K67,0) -> 0
B68: 44 | H68: 0 | I68: 0 | J68: 0 | K68: =IFERROR((J68/I68)/7,0)*(SUMPRODUCT($N$21*30))*$J$21 -> 0 | L68: =IFERROR(H68,0) -> 0 | M68: =IFERROR(K68-L68,0) -> 0 | N68: =IFERROR(L68/K68,0)*4 -> 0 | O68: =IFERROR(L68/K68,0)*2 -> 0 | P68: =IFERROR(L68/K68,0)*1.34 -> 0 | Q68: =IFERROR(L68/K68,0) -> 0
B69: 45 | H69: 0 | I69: 0 | J69: 0 | K69: 0 | L69: 0 | M69: 0 | N69: 0 | O69: 0 | P69: 0 | Q69: 0
B70: 46 | H70: 0 | I70: 0 | J70: 0 | K70: 0 | L70: 0 | M70: 0 | N70: 0 | O70: 0 | P70: 0 | Q70: 0
B71: 47 | C71: CONDIMENTS | E71: TOTAL | H71: =SUBTOTAL(109,H57:H70) -> 130 | J71: =SUBTOTAL(109,J57:J70) -> 19 | K71: =SUM(K57:K70)*1.0001 -> 128.6332702 | L71: =SUM(L57:L70)*1.0001 -> 130.013 | M71: =SUBTOTAL(109,M57:M70) -> -1.379591837 | N71: 4.04290429 | O71: 2.021452145 | P71: 1.354372937 | Q71: 1.010726073
B72: 48
B73: 49 | C73: DAIRY | D73: BAKING | E73: MILK POWDER | F73: 2 CAN | G73: 5 | H73: 10 | I73: 50 | J73: 2 | K73: =IFERROR((J73/I73)/7,0)*(SUMPRODUCT($N$21*30))*$J$21 -> 16.45714286 | L73: =IFERROR(H73,0) -> 10 | M73: =IFERROR(K73-L73,0) -> 6.457142857 | N73: =IFERROR(L73/K73,0)*4 -> 2.430555556 | O73: =IFERROR(L73/K73,0)*2 -> 1.215277778 | P73: =IFERROR(L73/K73,0)*1.34 -> 0.8142361111 | Q73: =IFERROR(L73/K73,0) -> 0.6076388889 | S73: Required servings for one adult per week | X73: 10
B74: 50 | C74: DAIRY | D74: BAKING | E74: CONDENSED MILK | F74: 3 CAN | G74: 1CAN | H74: 48 | I74: 12 | J74: 2 | K74: =IFERROR((J74/I74)/7,0)*(SUMPRODUCT($N$21*30))*$J$21 -> 68.57142857 | L74: =IFERROR(H74,0) -> 48 | M74: =IFERROR(K74-L74,0) -> 20.57142857 | N74: 2.8 | O74: 1.4 | P74: 0.938 | Q74: 0.7 | S74: Total servings to meet plans goal | X74: =IFERROR($J$21*$N$21,0)*X73 -> 960
B75: 51 | C75: DAIRY | D75: BAKING | E75: SWEET CONDENSED | F75: 4 CAN | G75: 1CAN | H75: 34 | I75: 12 | J75: 1 | K75: 34.28571429 | L75: 34 | M75: 0.2857142857 | N75: 3.966666667 | O75: 1.983333333 | P75: 1.328833333 | Q75: 0.9916666667
B76: 52 | C76: DAIRY | D76: COFFEE | E76: BUTTER PECAN SYRUP | F76: 5 CAN | G76: 1CAN | H76: 17 | I76: 30 | J76: 7 | K76: 96 | L76: 17 | M76: 79 | N76: 0.7083333333 | O76: 0.3541666667 | P76: 0.2372916667 | Q76: 0.1770833333
B77: 53 | H77: 0 | I77: 0 | J77: 0 | K77: 0 | L77: 0 | M77: 0 | N77: 0 | O77: 0 | P77: 0 | Q77: 0
B78: 54 | H78: 0 | I78: 0 | J78: 0 | K78: 0 | L78: 0 | M78: 0 | N78: 0 | O78: 0 | P78: 0 | Q78: 0
B79: 55 | H79: 0 | I79: 0 | J79: 0 | K79: 0 | L79: 0 | M79: 0 | N79: 0 | O79: 0 | P79: 0 | Q79: 0
B80: 56 | H80: 0 | I80: 0 | J80: 0 | K80: 0 | L80: 0 | M80: 0 | N80: 0 | O80: 0 | P80: 0 | Q80: 0
B81: 57 | H81: 0 | I81: 0 | J81: 0 | K81: 0 | L81: 0 | M81: 0 | N81: 0 | O81: 0 | P81: 0 | Q81: 0
B82: 58 | H82: 0 | I82: 0 | J82: 0 | K82: 0 | L82: 0 | M82: 0 | N82: 0 | O82: 0 | P82: 0 | Q82: 0
B83: 59 | H83: 0 | I83: 0 | J83: 0 | K83: 0 | L83: 0 | M83: 0 | N83: 0 | O83: 0 | P83: 0 | Q83: 0
B84: 60 | H84: 0 | I84: 0 | J84: 0 | K84: =IFERROR((J84/I84)/7,0)*(SUMPRODUCT($N$21*30))*$J$21 -> 0 | L84: =IFERROR(H84,0) -> 0 | M84: =IFERROR(K84-L84,0) -> 0 | N84: =IFERROR(L84/K84,0)*4 -> 0 | O84: =IFERROR(L84/K84,0)*2 -> 0 | P84: =IFERROR(L84/K84,0)*1.34 -> 0 | Q84: =IFERROR(L84/K84,0) -> 0
B85: 61 | H85: 0 | I85: 0 | J85: 0 | K85: 0 | L85: 0 | M85: 0 | N85: 0 | O85: 0 | P85: 0 | Q85: 0
B86: 62 | H86: 0 | I86: 0 | J86: 0 | K86: 0 | L86: 0 | M86: 0 | N86: 0 | O86: 0 | P86: 0 | Q86: 0
B87: 63 | C87: DAIRY | E87: TOTAL | H87: =SUBTOTAL(109,H73:H86) -> 109 | J87: =SUBTOTAL(109,J73:J86) -> 12 | K87: =SUM(K73:K86)*1.0001 -> 215.3358171 | L87: =SUM(L73:L86)*1.0001 -> 109.0109 | M87: =SUBTOTAL(109,M73:M86) -> 106.3142857 | N87: 2.024946921 | O87: 1.012473461 | P87: 0.6783572187 | Q87: 0.5062367304
B88: 64
B89: 65 | C89: HOME GOODS | D89: Grooming | E89: LAUNDRY DET | F89: 2 CAN | G89: 5 | H89: 6 | I89: 60 | J89: 1 | K89: =IFERROR((J89/I89)/7,0)*(SUMPRODUCT($N$21*30))*$J$21 -> 6.857142857 | L89: =IFERROR(H89,0) -> 6 | M89: =IFERROR(K89-L89,0) -> 0.8571428571 | N89: =IFERROR(L89/K89,0)*4 -> 3.5 | O89: =IFERROR(L89/K89,0)*2 -> 1.75 | P89: =IFERROR(L89/K89,0)*1.34 -> 1.1725 | Q89: =IFERROR(L89/K89,0) -> 0.875 | S89: Required servings for one adult per week | X89: 14
B90: 66 | C90: HOME GOODS | D90: Grooming | E90: TOOTH PASTE | F90: 3 CAN | G90: 1CAN | H90: 49 | I90: 40 | J90: 7 | K90: =IFERROR((J90/I90)/7,0)*(SUMPRODUCT($N$21*30))*$J$21 -> 72 | L90: =IFERROR(H90,0) -> 49 | M90: =IFERROR(K90-L90,0) -> 23 | N90: 2.722222222 | O90: 1.361111111 | P90: 0.9119444444 | Q90: 0.6805555556 | S90: Total servings to meet plans goal | X90: =IFERROR($J$21*$N$21,0)*X89 -> 1344
B91: 67 | C91: HOME GOODS | D91: Household | E91: DISHWASHER LIQ | F91: 4 CAN | G91: 1CAN | H91: 12 | I91: 60 | J91: 2 | K91: 13.71428571 | L91: 12 | M91: 1.714285714 | N91: 3.5 | O91: 1.75 | P91: 1.1725 | Q91: 0.875
B92: 68 | C92: HOME GOODS | D92: Grooming | E92: SHAMPOO | F92: 5 CAN | G92: 1CAN | H92: 14 | I92: 24 | J92: 1 | K92: 17.14285714 | L92: 14 | M92: 3.142857143 | N92: 3.266666667 | O92: 1.633333333 | P92: 1.094333333 | Q92: 0.8166666667
B93: 69 | C93: HOME GOODS | D93: Grooming | E93: SOAP BARS | F93: 9 CAN | G93: 1CAN | H93: 19 | I93: 24 | J93: 4 | K93: 68.57142857 | L93: 19 | M93: 49.57142857 | N93: 1.108333333 | O93: 0.5541666667 | P93: 0.3712916667 | Q93: 0.2770833333
B94: 70 | C94: HOME GOODS | D94: grooming | E94: RAZOR SHAVE | F94: 11 CAN | G94: 1CAN | H94: 19 | I94: 4 | J94: 0.25 | K94: 25.71428571 | L94: 19 | M94: 6.714285714 | N94: 2.955555556 | O94: 1.477777778 | P94: 0.9901111111 | Q94: 0.7388888889
B95: 71 | C95: HOME GOODS | D95: grooming | E95: TOILET PAPER | F95: pack | G95: serving | H95: 27 | I95: 16 | J95: 1 | K95: 25.71428571 | L95: 27 | M95: -1.285714286 | N95: 4.2 | O95: 2.1 | P95: 1.407 | Q95: 1.05
B96: 72 | H96: 0 | I96: 0 | J96: 0 | K96: 0 | L96: 0 | M96: 0 | N96: 0 | O96: 0 | P96: 0 | Q96: 0
B97: 73 | H97: 0 | I97: 0 | J97: 0 | K97: 0 | L97: 0 | M97: 0 | N97: 0 | O97: 0 | P97: 0 | Q97: 0
B98: 74 | H98: 0 | I98: 0 | J98: 0 | K98: 0 | L98: 0 | M98: 0 | N98: 0 | O98: 0 | P98: 0 | Q98: 0
B99: 75 | H99: 0 | I99: 0 | J99: 0 | K99: 0 | L99: 0 | M99: 0 | N99: 0 | O99: 0 | P99: 0 | Q99: 0
B100: 76 | H100: 0 | I100: 0 | J100: 0 | K100: =IFERROR((J100/I100)/7,0)*(SUMPRODUCT($N$21*30))*$J$21 -> 0 | L100: =IFERROR(H100,0) -> 0 | M100: =IFERROR(K100-L100,0) -> 0 | N100: =IFERROR(L100/K100,0)*4 -> 0 | O100: =IFERROR(L100/K100,0)*2 -> 0 | P100: =IFERROR(L100/K100,0)*1.34 -> 0 | Q100: =IFERROR(L100/K100,0) -> 0
B101: 77 | H101: 0 | I101: 0 | J101: 0 | K101: 0 | L101: 0 | M101: 0 | N101: 0 | O101: 0 | P101: 0 | Q101: 0
B102: 78 | H102: 0 | I102: 0 | J102: 0 | K102: 0 | L102: 0 | M102: 0 | N102: 0 | O102: 0 | P102: 0 | Q102: 0
B103: 79 | C103: HOME GOODS | E103: TOTAL | H103: =SUBTOTAL(109,H89:H102) -> 146 | J103: =SUBTOTAL(109,J89:J102) -> 16.25 | K103: =SUM(K89:K102)*1.0001 -> 229.7372571 | L103: =SUM(L89:L102)*1.0001 -> 146.0146 | M103: =SUBTOTAL(109,M89:M102) -> 83.71428571 | N103: 2.542288557 | O103: 1.271144279 | P103: 0.8516666667 | Q103: 0.6355721393
B104: 80
B105: 81 | C105: PASTA | D105: DINNER | E105: PASTA | F105: 2 CAN | G105: 5 | H105: 86 | I105: 8 | J105: 2 | K105: =IFERROR((J105/I105)/7,0)*(SUMPRODUCT($N$21*30))*$J$21 -> 102.8571429 | L105: =IFERROR(H105,0) -> 86 | M105: =IFERROR(K105-L105,0) -> 16.85714286 | N105: =IFERROR(L105/K105,0)*4 -> 3.344444444 | O105: =IFERROR(L105/K105,0)*2 -> 1.672222222 | P105: =IFERROR(L105/K105,0)*1.34 -> 1.120388889 | Q105: =IFERROR(L105/K105,0) -> 0.8361111111 | S105: Required servings for one adult per week | X105: 15
B106: 82 | C106: PASTA | D106: DINNER | E106: PASTA SAUCE | F106: 3 CAN | G106: 1CAN | H106: 14 | I106: 25 | J106: 2 | K106: =IFERROR((J106/I106)/7,0)*(SUMPRODUCT($N$21*30))*$J$21 -> 32.91428571 | L106: =IFERROR(H106,0) -> 14 | M106: =IFERROR(K106-L106,0) -> 18.91428571 | N106: 1.701388889 | O106: 0.8506944444 | P106: 0.5699652778 | Q106: 0.4253472222 | S106: Total servings to meet plans goal | X106: =IFERROR($J$21*$N$21,0)*X105 -> 1440
B107: 83 | C107: PASTA | D107: DINNER | E107: Ramen Noodles, beef | F107: 4 CAN | G107: 1CAN | H107: 14 | I107: 8 | J107: 2 | K107: 102.8571429 | L107: 14 | M107: 88.85714286 | N107: 0.5444444444 | O107: 0.2722222222 | P107: 0.1823888889 | Q107: 0.1361111111
B108: 84 | C108: PASTA | D108: DINNER | E108: Ramen Noodles, chicken | F108: 5 CAN | G108: 1CAN | H108: 24 | I108: 8 | J108: 1 | K108: 51.42857143 | L108: 24 | M108: 27.42857143 | N108: 1.866666667 | O108: 0.9333333333 | P108: 0.6253333333 | Q108: 0.4666666667
B109: 85 | C109: PASTA | D109: DINNER | E109: STICKY RICE | F109: 5LBS | G109: 1CUP | H109: 17 | I109: 60 | J109: 2 | K109: 13.71428571 | L109: 17 | M109: -3.285714286 | N109: 4.958333333 | O109: 2.479166667 | P109: 1.661041667 | Q109: 1.239583333
B110: 86 | C110: PASTA | D110: DINNER | E110: Spaghetti and Macaroni | F110: 11 CAN | G110: 1CAN | H110: 23 | I110: 24 | J110: 2 | K110: 34.28571429 | L110: 23 | M110: 11.28571429 | N110: 2.683333333 | O110: 1.341666667 | P110: 0.8989166667 | Q110: 0.6708333333
B111: 87 | C111: PASTA | D111: DINNER | E111: Spaghetti w/ sauce, canned | F111: PACK | G111: 1/2PK | H111: 20 | I111: 24 | J111: 2 | K111: 34.28571429 | L111: 20 | M111: 14.28571429 | N111: 2.333333333 | O111: 1.166666667 | P111: 0.7816666667 | Q111: 0.5833333333
B112: 88 | C112: PASTA | D112: DINNER | E112: Rice, wild | F112: PACK | G112: 1/2PK | H112: 43 | I112: 20 | J112: 2 | K112: 41.14285714 | L112: 43 | M112: -1.857142857 | N112: 4.180555556 | O112: 2.090277778 | P112: 1.400486111 | Q112: 1.045138889
B113: 89 | H113: 0 | I113: 0 | J113: 0 | K113: 0 | L113: 0 | M113: 0 | N113: 0 | O113: 0 | P113: 0 | Q113: 0
B114: 90 | H114: 0 | I114: 0 | J114: 0 | K114: 0 | L114: 0 | M114: 0 | N114: 0 | O114: 0 | P114: 0 | Q114: 0
B115: 91 | H115: 0 | I115: 0 | J115: 0 | K115: 0 | L115: 0 | M115: 0 | N115: 0 | O115: 0 | P115: 0 | Q115: 0
B116: 92 | H116: 0 | I116: 0 | J116: 0 | K116: =IFERROR((J116/I116)/7,0)*(SUMPRODUCT($N$21*30))*$J$21 -> 0 | L116: =IFERROR(H116,0) -> 0 | M116: =IFERROR(K116-L116,0) -> 0 | N116: =IFERROR(L116/K116,0)*4 -> 0 | O116: =IFERROR(L116/K116,0)*2 -> 0 | P116: =IFERROR(L116/K116,0)*1.34 -> 0 | Q116: =IFERROR(L116/K116,0) -> 0
B117: 93 | H117: 0 | I117: 0 | J117: 0 | K117: 0 | L117: 0 | M117: 0 | N117: 0 | O117: 0 | P117: 0 | Q117: 0
B118: 94 | H118: 0 | I118: 0 | J118: 0 | K118: 0 | L118: 0 | M118: 0 | N118: 0 | O118: 0 | P118: 0 | Q118: 0
B119: 95 | C119: PASTA | E119: TOTAL | H119: =SUBTOTAL(109,H105:H118) -> 241 | J119: =SUBTOTAL(109,J105:J118) -> 15 | K119: =SUM(K105:K118)*1.0001 -> 413.5270629 | L119: =SUM(L105:L118)*1.0001 -> 241.0241 | M119: =SUBTOTAL(109,M105:M118) -> 172.4857143 | N119: 2.331398563 | O119: 1.165699281 | P119: 0.7810185185 | Q119: 0.5828496407
B120: 96
B121: 97 | C121: PROTIEN | D121: DINNER | E121: JERKEY | F121: 2 CAN | G121: 5 | H121: 16 | I121: 40 | J121: 4 | K121: =IFERROR((J121/I121)/7,0)*(SUMPRODUCT($N$21*30))*$J$21 -> 41.14285714 | L121: =IFERROR(H121,0) -> 16 | M121: =IFERROR(K121-L121,0) -> 25.14285714 | N121: =IFERROR(L121/K121,0)*4 -> 1.555555556 | O121: =IFERROR(L121/K121,0)*2 -> 0.7777777778 | P121: =IFERROR(L121/K121,0)*1.34 -> 0.5211111111 | Q121: =IFERROR(L121/K121,0) -> 0.3888888889 | S121: Required servings for one adult per week | X121: 9
B122: 98 | C122: PROTIEN | D122: DINNER | E122: CANNED HAM | F122: 3 CAN | G122: 1CAN | H122: 22 | I122: 8 | J122: 0.5 | K122: =IFERROR((J122/I122)/7,0)*(SUMPRODUCT($N$21*30))*$J$21 -> 25.71428571 | L122: =IFERROR(H122,0) -> 22 | M122: =IFERROR(K122-L122,0) -> 3.714285714 | N122: 3.422222222 | O122: 1.711111111 | P122: 1.146444444 | Q122: 0.8555555556 | S122: Total servings to meet plans goal | X122: =IFERROR($J$21*$N$21,0)*X121 -> 864
B123: 99 | C123: PROTIEN | D123: DINNER | E123: CANNED TUNA | F123: 4 CAN | G123: 1CAN | H123: 201 | I123: 2 | J123: 1 | K123: 205.7142857 | L123: 201 | M123: 4.714285714 | N123: 3.908333333 | O123: 1.954166667 | P123: 1.309291667 | Q123: 0.9770833333
B124: 100 | C124: PROTIEN | D124: DINNER | E124: CANNED CHICKEN | F124: 5 CAN | G124: 1CAN | H124: 36 | I124: 12 | J124: 1 | K124: 34.28571429 | L124: 36 | M124: -1.714285714 | N124: 4.2 | O124: 2.1 | P124: 1.407 | Q124: 1.05
B125: 101 | C125: PROTIEN | D125: DINNER | E125: CANNED BEEF | F125: 9 CAN | G125: 1CAN | H125: 3 | I125: 12 | J125: 0.5 | K125: 17.14285714 | L125: 3 | M125: 14.14285714 | N125: 0.7 | O125: 0.35 | P125: 0.2345 | Q125: 0.175
B126: 102 | C126: PROTIEN | D126: DINNER | E126: SPAM | F126: 11 CAN | G126: 1CAN | H126: 34 | I126: 6 | J126: 0.5 | K126: 34.28571429 | L126: 34 | M126: 0.2857142857 | N126: 3.966666667 | O126: 1.983333333 | P126: 1.328833333 | Q126: 0.9916666667
B127: 103 | C127: PROTIEN | D127: DINNER | E127: DEHYDRAED EGGS | F127: pack | G127: serving | H127: 175 | I127: 1 | J127: 1 | K127: 411.4285714 | L127: 175 | M127: 236.4285714 | N127: 1.701388889 | O127: 0.8506944444 | P127: 0.5699652778 | Q127: 0.4253472222
B128: 104 | C128: PROTIEN | D128: DAILY | E128: EGG BEATERS | F128: pack | G128: serving | H128: 15 | I128: 6 | J128: 0.25 | K128: 17.14285714 | L128: 15 | M128: 2.142857143 | N128: 3.5 | O128: 1.75 | P128: 1.1725 | Q128: 0.875
B129: 105 | H129: 0 | I129: 0 | J129: 0 | K129: 0 | L129: 0 | M129: 0 | N129: 0 | O129: 0 | P129: 0 | Q129: 0
B130: 106 | H130: 0 | I130: 0 | J130: 0 | K130: 0 | L130: 0 | M130: 0 | N130: 0 | O130: 0 | P130: 0 | Q130: 0
B131: 107 | H131: 0 | I131: 0 | J131: 0 | K131: 0 | L131: 0 | M131: 0 | N131: 0 | O131: 0 | P131: 0 | Q131: 0
B132: 108 | H132: 0 | I132: 0 | J132: 0 | K132: =IFERROR((J132/I132)/7,0)*(SUMPRODUCT($N$21*30))*$J$21 -> 0 | L132: =IFERROR(H132,0) -> 0 | M132: =IFERROR(K132-L132,0) -> 0 | N132: =IFERROR(L132/K132,0)*4 -> 0 | O132: =IFERROR(L132/K132,0)*2 -> 0 | P132: =IFERROR(L132/K132,0)*1.34 -> 0 | Q132: =IFERROR(L132/K132,0) -> 0
B133: 109 | H133: 0 | I133: 0 | J133: 0 | K133: 0 | L133: 0 | M133: 0 | N133: 0 | O133: 0 | P133: 0 | Q133: 0
B134: 110 | H134: 0 | I134: 0 | J134: 0 | K134: 0 | L134: 0 | M134: 0 | N134: 0 | O134: 0 | P134: 0 | Q134: 0
B135: 111 | C135: PROTIEN | E135: TOTAL | H135: =SUBTOTAL(109,H121:H134) -> 502 | J135: =SUBTOTAL(109,J121:J134) -> 8.75 | K135: =SUM(K121:K134)*1.0001 -> 786.9358286 | L135: =SUM(L121:L134)*1.0001 -> 502.0502 | M135: =SUBTOTAL(109,M121:M134) -> 284.8571429 | N135: 2.551924473 | O135: 1.275962237 | P135: 0.8548946986 | Q135: 0.6379811184
B136: 112 | J136: 0
B137: 113 | C137: SUGARS | D137: BAKING | E137: SUGAR | F137: 5LBS | G137: 1 | H137: 3 | I137: 400 | J137: 6 | K137: =IFERROR((J137/I137)/7,0)*(SUMPRODUCT($N$21*30))*$J$21 -> 6.171428571 | L137: =IFERROR(H137,0) -> 3 | M137: =IFERROR(K137-L137,0) -> 3.171428571 | N137: =IFERROR(L137/K137,0)*4 -> 1.944444444 | O137: =IFERROR(L137/K137,0)*2 -> 0.9722222222 | P137: =IFERROR(L137/K137,0)*1.34 -> 0.6513888889 | Q137: =IFERROR(L137/K137,0) -> 0.4861111111 | S137: Required servings for one adult per week | X137: 11
B138: 114 | C138: SUGARS | D138: COFFEE | E138: HONEY | F138: 5LBS | G138: 1CAN | H138: 6 | I138: 200 | J138: 7 | K138: =IFERROR((J138/I138)/7,0)*(SUMPRODUCT($N$21*30))*$J$21 -> 14.4 | L138: =IFERROR(H138,0) -> 6 | M138: =IFERROR(K138-L138,0) -> 8.4 | N138: =IFERROR(L138/K138,0)*4 -> 1.666666667 | O138: =IFERROR(L138/K138,0)*2 -> 0.8333333333 | P138: =IFERROR(L138/K138,0)*1.34 -> 0.5583333333 | Q138: =IFERROR(L138/K138,0) -> 0.4166666667 | S138: Total servings to meet plans goal | X138: =IFERROR($J$21*$N$21,0)*X137 -> 1056
B139: 115 | C139: SUGARS | D139: DINNER | E139: BROWN SUGAR | F139: 4 CAN | G139: 1CAN | H139: 16 | I139: 60 | J139: 1 | K139: 6.857142857 | L139: 16 | M139: -9.142857143 | N139: 9.333333333 | O139: 4.666666667 | P139: 3.126666667 | Q139: 2.333333333
B140: 116 | C140: SUGARS | D140: DINNER | E140: MAPLE SYRUP | F140: 5 CAN | G140: 1CAN | H140: 14 | I140: 32 | J140: 2 | K140: 25.71428571 | L140: 14 | M140: 11.71428571 | N140: 2.177777778 | O140: 1.088888889 | P140: 0.7295555556 | Q140: 0.5444444444
B141: 117 | C141: SUGARS | D141: DINNER | E141: SUGAR LT BRN | F141: 1LB | G141: 1CUP | H141: 7 | I141: 60 | J141: 1 | K141: 6.857142857 | L141: 7 | M141: -0.1428571429 | N141: 4.083333333 | O141: 2.041666667 | P141: 1.367916667 | Q141: 1.020833333
B142: 118 | H142: 0 | I142: 0 | J142: 0 | K142: 0 | L142: 0 | M142: 0 | N142: 0 | O142: 0 | P142: 0 | Q142: 0
B143: 119 | H143: 0 | I143: 0 | J143: 0 | K143: 0 | L143: 0 | M143: 0 | N143: 0 | O143: 0 | P143: 0 | Q143: 0
B144: 120 | H144: 0 | I144: 0 | J144: 0 | K144: 0 | L144: 0 | M144: 0 | N144: 0 | O144: 0 | P144: 0 | Q144: 0
B145: 121 | H145: 0 | I145: 0 | J145: 0 | K145: 0 | L145: 0 | M145: 0 | N145: 0 | O145: 0 | P145: 0 | Q145: 0
B146: 122 | H146: 0 | I146: 0 | J146: 0 | K146: 0 | L146: 0 | M146: 0 | N146: 0 | O146: 0 | P146: 0 | Q146: 0
B147: 123 | H147: 0 | I147: 0 | J147: 0 | K147: 0 | L147: 0 | M147: 0 | N147: 0 | O147: 0 | P147: 0 | Q147: 0
B148: 124 | H148: 0 | I148: 0 | J148: 0 | K148: =IFERROR((J148/I148)/7,0)*(SUMPRODUCT($N$21*30))*$J$21 -> 0 | L148: =IFERROR(H148,0) -> 0 | M148: =IFERROR(K148-L148,0) -> 0 | N148: =IFERROR(L148/K148,0)*4 -> 0 | O148: =IFERROR(L148/K148,0)*2 -> 0 | P148: =IFERROR(L148/K148,0)*1.34 -> 0 | Q148: =IFERROR(L148/K148,0) -> 0
B149: 125 | H149: 0 | I149: 0 | J149: 0 | K149: 0 | L149: 0 | M149: 0 | N149: 0 | O149: 0 | P149: 0 | Q149: 0
B150: 126 | H150: 0 | I150: 0 | J150: 0 | K150: 0 | L150: 0 | M150: 0 | N150: 0 | O150: 0 | P150: 0 | Q150: 0
B151: 127 | C151: SUGARS | E151: TOTAL | H151: =SUBTOTAL(109,H137:H150) -> 46 | J151: =SUBTOTAL(109,J137:J150) -> 17 | K151: =SUM(K137:K150)*1.0001 -> 60.006 | L151: =SUM(L137:L150)*1.0001 -> 46.0046 | M151: =SUBTOTAL(109,M137:M150) -> 14 | N151: 3.066666667 | O151: 1.533333333 | P151: 1.027333333 | Q151: 0.7666666667
B152: 128
B153: 129 | C153: SNACKS | D153: MISC | E153: PEANUT BUTTER | F153: 2 CAN | G153: 5 | H153: 18 | I153: 32 | J153: 4 | K153: =IFERROR((J153/I153)/7,0)*(SUMPRODUCT($N$21*30))*$J$21 -> 51.42857143 | L153: =IFERROR(H153,0) -> 18 | M153: =IFERROR(K153-L153,0) -> 33.42857143 | N153: =IFERROR(L153/K153,0)*4 -> 1.4 | O153: =IFERROR(L153/K153,0)*2 -> 0.7 | P153: =IFERROR(L153/K153,0)*1.34 -> 0.469 | Q153: =IFERROR(L153/K153,0) -> 0.35 | S153: Required servings for one adult per week | X153: 14
B154: 130 | C154: SNACKS | D154: MISC | E154: ALMONDS | F154: 3 CAN | G154: 1CAN | H154: 5 | I154: 22 | J154: 1 | K154: =IFERROR((J154/I154)/7,0)*(SUMPRODUCT($N$21*30))*$J$21 -> 18.7012987 | L154: =IFERROR(H154,0) -> 5 | M154: =IFERROR(K154-L154,0) -> 13.7012987 | N154: =IFERROR(L154/K154,0)*4 -> 1.069444444 | O154: =IFERROR(L154/K154,0)*2 -> 0.5347222222 | P154: =IFERROR(L154/K154,0)*1.34 -> 0.3582638889 | Q154: =IFERROR(L154/K154,0) -> 0.2673611111 | S154: Total servings to meet plans goal | X154: =IFERROR($J$21*$N$21,0)*X153 -> 1344
B155: 131 | C155: SNACKS | D155: MISC | E155: SCOTT CHIPS | F155: 4 CAN | G155: 1CAN | H155: 56 | I155: 4 | J155: 1 | K155: 102.8571429 | L155: 56 | M155: 46.85714286 | N155: 2.177777778 | O155: 1.088888889 | P155: 0.7295555556 | Q155: 0.5444444444
B156: 132 | C156: SNACKS | D156: MISC | E156: JESSI CHIPS | F156: BAG | G156: 1/4 BAG | H156: 204 | I156: 4 | J156: 4 | K156: 411.4285714 | L156: 204 | M156: 207.4285714 | N156: 1.983333333 | O156: 0.9916666667 | P156: 0.6644166667 | Q156: 0.4958333333
B157: 133 | C157: SNACKS | D157: MISC | E157: SALSA | F157: 8JARS | G157: 1/8JAR | H157: 100 | I157: 8 | J157: 2 | K157: 102.8571429 | L157: 100 | M157: 2.857142857 | N157: 3.888888889 | O157: 1.944444444 | P157: 1.302777778 | Q157: 0.9722222222
B158: 134 | C158: SNACKS | D158: MISC | E158: CHEESE DIP | F158: CAN | G158: 2022-01-08 | H158: 105 | I158: 8 | J158: 2 | K158: 102.8571429 | L158: 105 | M158: -2.142857143 | N158: 4.083333333 | O158: 2.041666667 | P158: 1.367916667 | Q158: 1.020833333
B159: 135 | C159: SNACKS | D159: MISC | E159: OTHER DIP | F159: CAN | G159: 0.125 | H159: 80 | I159: 8 | J159: 2 | K159: 102.8571429 | L159: 80 | M159: 22.85714286 | N159: 3.111111111 | O159: 1.555555556 | P159: 1.042222222 | Q159: 0.7777777778
B160: 136 | C160: SNACKS | D160: MISC | E160: CHOCOLATE | F160: CAN | G160: 1BAR | H160: 34 | I160: 16 | J160: 2 | K160: 51.42857143 | L160: 34 | M160: 17.42857143 | N160: 2.644444444 | O160: 1.322222222 | P160: 0.8858888889 | Q160: 0.6611111111
B161: 137 | C161: SNACKS | D161: MISC | E161: WHITE CHOCOLATE | F161: PACK | G161: 1BAR | H161: 40 | I161: 16 | J161: 2 | K161: 51.42857143 | L161: 40 | M161: 11.42857143 | N161: 3.111111111 | O161: 1.555555556 | P161: 1.042222222 | Q161: 0.7777777778
B162: 138 | H162: 0 | I162: 0 | J162: 0 | K162: 0 | L162: 0 | M162: 0 | N162: 0 | O162: 0 | P162: 0 | Q162: 0
B163: 139 | H163: 0 | I163: 0 | J163: 0 | K163: 0 | L163: 0 | M163: 0 | N163: 0 | O163: 0 | P163: 0 | Q163: 0
B164: 140 | H164: 0 | I164: 0 | J164: 0 | K164: =IFERROR((J164/I164)/7,0)*(SUMPRODUCT($N$21*30))*$J$21 -> 0 | L164: =IFERROR(H164,0) -> 0 | M164: =IFERROR(K164-L164,0) -> 0 | N164: =IFERROR(L164/K164,0)*4 -> 0 | O164: =IFERROR(L164/K164,0)*2 -> 0 | P164: =IFERROR(L164/K164,0)*1.34 -> 0 | Q164: =IFERROR(L164/K164,0) -> 0
B165: 141 | H165: 0 | I165: 0 | J165: 0 | K165: 0 | L165: 0 | M165: 0 | N165: 0 | O165: 0 | P165: 0 | Q165: 0
B166: 142 | H166: 0 | I166: 0 | J166: 0 | K166: 0 | L166: 0 | M166: 0 | N166: 0 | O166: 0 | P166: 0 | Q166: 0
B167: 143 | C167: SNACKS | E167: TOTAL | H167: =SUBTOTAL(109,H153:H166) -> 642 | J167: =SUBTOTAL(109,J153:J166) -> 20 | K167: =SUM(K153:K166)*1.0001 -> 995.9437403 | L167: =SUM(L153:L166)*1.0001 -> 642.0642 | M167: =SUBTOTAL(109,M153:M166) -> 353.8441558 | N167: 2.578716745 | O167: 1.289358372 | P167: 0.8638701095 | Q167: 0.6446791862
B168: 144
B169: 145 | C169: CEREALS | D169: DAILY | E169: BREAKFAST BARS | F169: PACK | G169: BAR | H169: 39 | I169: 32 | J169: 1 | K169: =IFERROR((J169/I169)/7,0)*(SUMPRODUCT($N$21*30))*$J$21 -> 12.85714286 | L169: =IFERROR(H169,0) -> 39 | M169: =IFERROR(K169-L169,0) -> -26.14285714 | N169: =IFERROR(L169/K169,0)*4 -> 12.13333333 | O169: =IFERROR(L169/K169,0)*2 -> 6.066666667 | P169: =IFERROR(L169/K169,0)*1.34 -> 4.064666667 | Q169: =IFERROR(L169/K169,0) -> 3.033333333 | S169: Required servings for one adult per week | X169: 14
B170: 146 | C170: CEREALS | D170: DAILY | E170: CREAM OF WHEAT | F170: PACK | G170: 1/2CUP | H170: 34 | I170: 16 | J170: 1 | K170: =IFERROR((J170/I170)/7,0)*(SUMPRODUCT($N$21*30))*$J$21 -> 25.71428571 | L170: =IFERROR(H170,0) -> 34 | M170: =IFERROR(K170-L170,0) -> -8.285714286 | N170: 5.288888889 | O170: 2.644444444 | P170: 1.771777778 | Q170: 1.322222222 | S170: Total servings to meet plans goal | X170: =IFERROR($J$21*$N$21,0)*X169 -> 1344
B171: 147 | C171: CEREALS | D171: DAILY | E171: OATS ROLLED | F171: PACK | G171: 1/2 CUP | H171: 36 | I171: 16 | J171: 1 | K171: 25.71428571 | L171: 36 | M171: -10.28571429 | N171: 5.6 | O171: 2.8 | P171: 1.876 | Q171: 1.4
B172: 148 | C172: CEREALS | D172: DAILY | E172: JESSI CEREAL | F172: PACK | G172: 2CUPS | H172: 76 | I172: 12 | J172: 2 | K172: 68.57142857 | L172: 76 | M172: -7.428571429 | N172: 4.433333333 | O172: 2.216666667 | P172: 1.485166667 | Q172: 1.108333333
B173: 149 | C173: CEREALS | D173: DAILY | E173: DADS CEREAL | F173: PACK | G173: 2cups | H173: 57 | I173: 12 | J173: 2 | K173: 68.57142857 | L173: 57 | M173: 11.57142857 | N173: 3.325 | O173: 1.6625 | P173: 1.113875 | Q173: 0.83125
B174: 150 | H174: 0 | I174: 0 | J174: 0 | K174: 0 | L174: 0 | M174: 0 | N174: 0 | O174: 0 | P174: 0 | Q174: 0
B175: 151 | H175: 0 | I175: 0 | J175: 0 | K175: 0 | L175: 0 | M175: 0 | N175: 0 | O175: 0 | P175: 0 | Q175: 0
B176: 152 | H176: 0 | I176: 0 | J176: 0 | K176: 0 | L176: 0 | M176: 0 | N176: 0 | O176: 0 | P176: 0 | Q176: 0
B177: 153 | H177: 0 | I177: 0 | J177: 0 | K177: 0 | L177: 0 | M177: 0 | N177: 0 | O177: 0 | P177: 0 | Q177: 0
B178: 154 | H178: 0 | I178: 0 | J178: 0 | K178: 0 | L178: 0 | M178: 0 | N178: 0 | O178: 0 | P178: 0 | Q178: 0
B179: 155 | H179: 0 | I179: 0 | J179: 0 | K179: 0 | L179: 0 | M179: 0 | N179: 0 | O179: 0 | P179: 0 | Q179: 0
B180: 156 | H180: 0 | I180: 0 | J180: 0 | K180: =IFERROR((J180/I180)/7,0)*(SUMPRODUCT($N$21*30))*$J$21 -> 0 | L180: =IFERROR(H180,0) -> 0 | M180: =IFERROR(K180-L180,0) -> 0 | N180: =IFERROR(L180/K180,0)*4 -> 0 | O180: =IFERROR(L180/K180,0)*2 -> 0 | P180: =IFERROR(L180/K180,0)*1.34 -> 0 | Q180: =IFERROR(L180/K180,0) -> 0
B181: 157 | H181: 0 | I181: 0 | J181: 0 | K181: 0 | L181: 0 | M181: 0 | N181: 0 | O181: 0 | P181: 0 | Q181: 0
B182: 158 | H182: 0 | I182: 0 | J182: 0 | K182: 0 | L182: 0 | M182: 0 | N182: 0 | O182: 0 | P182: 0 | Q182: 0
B183: 159 | C183: CEREALS | E183: TOTAL | H183: =SUBTOTAL(109,H169:H182) -> 242 | J183: =SUBTOTAL(109,J169:J182) -> 7 | K183: =SUM(K169:K182)*1.0001 -> 201.4487143 | L183: =SUM(L169:L182)*1.0001 -> 242.0242 | M183: =SUBTOTAL(109,M169:M182) -> -40.57142857 | N183: 4.805673759 | O183: 2.402836879 | P183: 1.609900709 | Q183: 1.20141844
B184: 160
B185: 161 | C185: SOUP | D185: DINNER | E185: SINGLE SERVE DRY | F185: 24CANS | G185: 1CAN | H185: 23 | I185: 20 | J185: 0.5 | K185: =IFERROR((J185/I185)/7,0)*(SUMPRODUCT($N$21*30))*$J$21 -> 10.28571429 | L185: =IFERROR(H185,0) -> 23 | M185: =IFERROR(K185-L185,0) -> -12.71428571 | N185: =IFERROR(L185/K185,0)*4 -> 8.944444444 | O185: =IFERROR(L185/K185,0)*2 -> 4.472222222 | P185: =IFERROR(L185/K185,0)*1.34 -> 2.996388889 | Q185: =IFERROR(L185/K185,0) -> 2.236111111 | S185: Required servings for one adult per week | X185: 4
B186: 162 | C186: SOUP | D186: DINNER | E186: BEEF BROTH | F186: 24CANS | G186: 1CAN | H186: 4 | I186: 60 | J186: 0.5 | K186: =IFERROR((J186/I186)/7,0)*(SUMPRODUCT($N$21*30))*$J$21 -> 3.428571429 | L186: =IFERROR(H186,0) -> 4 | M186: =IFERROR(K186-L186,0) -> -0.5714285714 | N186: 4.666666667 | O186: 2.333333333 | P186: 1.563333333 | Q186: 1.166666667 | S186: Total servings to meet plans goal | X186: =IFERROR($J$21*$N$21,0)*X185 -> 384
B187: 163 | C187: SOUP | D187: DINNER | E187: CHICKEN BROTH | F187: 24CANS | G187: 1CAN | H187: 1 | I187: 40 | J187: 0.5 | K187: 5.142857143 | L187: 1 | M187: 4.142857143 | N187: 0.7777777778 | O187: 0.3888888889 | P187: 0.2605555556 | Q187: 0.1944444444
B188: 164 | C188: SOUP | D188: DINNER | E188: CHICKEN SOUP | F188: 24CANS | G188: 1CAN | H188: 2 | I188: 24 | J188: 0.5 | K188: 8.571428571 | L188: 2 | M188: 6.571428571 | N188: 0.9333333333 | O188: 0.4666666667 | P188: 0.3126666667 | Q188: 0.2333333333
B189: 165 | C189: SOUP | D189: DINNER | E189: VEG SOUP | F189: 24CANS | G189: 1CAN | H189: 3 | I189: 24 | J189: 0.5 | K189: 8.571428571 | L189: 3 | M189: 5.571428571 | N189: 1.4 | O189: 0.7 | P189: 0.469 | Q189: 0.35
B190: 166 | C190: SOUP | D190: DINNER | E190: BEEF STEW | F190: 24CANS | G190: 1CAN | H190: 16 | I190: 4 | J190: 0.5 | K190: 51.42857143 | L190: 16 | M190: 35.42857143 | N190: 1.244444444 | O190: 0.6222222222 | P190: 0.4168888889 | Q190: 0.3111111111
B191: 167 | C191: SOUP | D191: DINNER | E191: RAVIOLI | F191: 24CANS | G191: 1CAN | H191: 3 | I191: 16 | J191: 0.5 | K191: 12.85714286 | L191: 3 | M191: 9.857142857 | N191: 0.9333333333 | O191: 0.4666666667 | P191: 0.3126666667 | Q191: 0.2333333333
B192: 168 | C192: SOUP | D192: DINNER | E192: CANNED SPAGHETTI | F192: 24CANS | G192: 1CAN | H192: 14 | I192: 8 | J192: 0.5 | K192: 25.71428571 | L192: 14 | M192: 11.71428571 | N192: 2.177777778 | O192: 1.088888889 | P192: 0.7295555556 | Q192: 0.5444444444
B193: 169 | C193: SOUP | D193: DINNER | E193: OTHER | F193: 24CANS | G193: 1CAN | H193: 0 | I193: 0 | J193: 0 | K193: 0 | L193: 0 | M193: 0 | N193: 0 | O193: 0 | P193: 0 | Q193: 0
B194: 170 | H194: 0 | I194: 0 | J194: 0 | K194: 0 | L194: 0 | M194: 0 | N194: 0 | O194: 0 | P194: 0 | Q194: 0
B195: 171 | H195: 0 | I195: 0 | J195: 0 | K195: 0 | L195: 0 | M195: 0 | N195: 0 | O195: 0 | P195: 0 | Q195: 0
B196: 172 | H196: 0 | I196: 0 | J196: 0 | K196: 0 | L196: 0 | M196: 0 | N196: 0 | O196: 0 | P196: 0 | Q196: 0
B197: 173 | H197: 0 | I197: 0 | J197: 0 | K197: =IFERROR((J197/I197)/7,0)*(SUMPRODUCT($N$21*30))*$J$21 -> 0 | L197: =IFERROR(H197,0) -> 0 | M197: =IFERROR(K197-L197,0) -> 0 | N197: =IFERROR(L197/K197,0)*4 -> 0 | O197: =IFERROR(L197/K197,0)*2 -> 0 | P197: =IFERROR(L197/K197,0)*1.34 -> 0 | Q197: =IFERROR(L197/K197,0) -> 0
B198: 174 | H198: 0 | I198: 0 | J198: 0 | K198: 0 | L198: 0 | M198: 0 | N198: 0 | O198: 0 | P198: 0 | Q198: 0
B199: 175 | C199: SOUP | E199: TOTAL | H199: =SUBTOTAL(109,H185:H196) -> 66 | J199: =SUBTOTAL(109,J185:J196) -> 4 | K199: =SUM(K185:K196)*1.0001 -> 126.0126 | L199: =SUM(L185:L196)*1.0001 -> 66.0066 | M199: =SUBTOTAL(109,M185:M196) -> 60 | N199: 2.095238095 | O199: 1.047619048 | P199: 0.7019047619 | Q199: 0.5238095238
B200: 176
B201: 177 | C201: VEGGIE | D201: DINNER | E201: MUSHROOMS | F201: BAG | G201: 5 | H201: 8 | I201: 20 | J201: 1 | K201: =IFERROR((J201/I201)/7,0)*(SUMPRODUCT($N$21*30))*$J$21 -> 20.57142857 | L201: =IFERROR(H201,0) -> 8 | M201: =IFERROR(K201-L201,0) -> 12.57142857 | N201: =IFERROR(L201/K201,0)*4 -> 1.555555556 | O201: =IFERROR(L201/K201,0)*2 -> 0.7777777778 | P201: =IFERROR(L201/K201,0)*1.34 -> 0.5211111111 | Q201: =IFERROR(L201/K201,0) -> 0.3888888889 | S201: Required servings for one adult per week | X201: 10
B202: 178 | C202: VEGGIE | D202: DINNER | E202: INSTANT POTATO | F202: BAG | G202: 1CAN | H202: 4 | I202: 60 | J202: 2 | K202: =IFERROR((J202/I202)/7,0)*(SUMPRODUCT($N$21*30))*$J$21 -> 13.71428571 | L202: =IFERROR(H202,0) -> 4 | M202: =IFERROR(K202-L202,0) -> 9.714285714 | N202: 1.166666667 | O202: 0.5833333333 | P202: 0.3908333333 | Q202: 0.2916666667 | S202: Total servings to meet plans goal | X202: =IFERROR($J$21*$N$21,0)*X201 -> 960
B203: 179 | C203: VEGGIE | D203: DINNER | E203: CANNED POTATO | F203: CAN | G203: 1CAN | H203: 4 | I203: 40 | J203: 0.5 | K203: 5.142857143 | L203: 4 | M203: 1.142857143 | N203: 3.111111111 | O203: 1.555555556 | P203: 1.042222222 | Q203: 0.7777777778
B204: 180 | C204: VEGGIE | D204: DINNER | E204: GREEN BEANS | F204: 5 CAN | G204: 1CAN | H204: 2 | I204: 24 | J204: 0.5 | K204: 8.571428571 | L204: 2 | M204: 6.571428571 | N204: 0.9333333333 | O204: 0.4666666667 | P204: 0.3126666667 | Q204: 0.2333333333
B205: 167 | C205: VEGGIE | D205: DINNER | E205: CORN | F205: 6 CAN | G205: 1CAN | H205: 3 | I205: 24 | J205: 0.5 | K205: 8.571428571 | L205: 3 | M205: 5.571428571 | N205: 1.4 | O205: 0.7 | P205: 0.469 | Q205: 0.35
B206: 168 | C206: VEGGIE | D206: DINNER | E206: PEAS | F206: 7 CAN | G206: 1CAN | H206: 16 | I206: 4 | J206: 0.5 | K206: 51.42857143 | L206: 16 | M206: 35.42857143 | N206: 1.244444444 | O206: 0.6222222222 | P206: 0.4168888889 | Q206: 0.3111111111
B207: 183 | C207: VEGGIE | D207: DINNER | E207: BAKED BEANS | F207: 8 CAN | G207: serving | H207: 32 | I207: 16 | J207: 1 | K207: 25.71428571 | L207: 32 | M207: -6.285714286 | N207: 4.977777778 | O207: 2.488888889 | P207: 1.667555556 | Q207: 1.244444444
B208: 184 | C208: VEGGIE | D208: DINNER | E208: GARLIC FRESH | F208: BAG | G208: serving | H208: 16 | I208: 14 | J208: 4 | K208: 117.5510204 | L208: 16 | M208: 101.5510204 | N208: 0.5444444444 | O208: 0.2722222222 | P208: 0.1823888889 | Q208: 0.1361111111
B209: 185 | C209: VEGGIE | D209: DINNER | E209: POTATO FRESH | F209: 5LBS | G209: serving | H209: 14 | I209: 8 | J209: 2 | K209: 102.8571429 | L209: 14 | M209: 88.85714286 | N209: 0.5444444444 | O209: 0.2722222222 | P209: 0.1823888889 | Q209: 0.1361111111
B210: 186 | H210: 0 | I210: 0 | J210: 0 | K210: 0 | L210: 0 | M210: 0 | N210: 0 | O210: 0 | P210: 0 | Q210: 0
B211: 187 | H211: 0 | I211: 0 | J211: 0 | K211: =IFERROR((J211/I211)/7,0)*(SUMPRODUCT($N$21*30))*$J$21 -> 0 | L211: =IFERROR(H211,0) -> 0 | M211: =IFERROR(K211-L211,0) -> 0 | N211: =IFERROR(L211/K211,0)*4 -> 0 | O211: =IFERROR(L211/K211,0)*2 -> 0 | P211: =IFERROR(L211/K211,0)*1.34 -> 0 | Q211: =IFERROR(L211/K211,0) -> 0
B212: 188 | H212: 0 | I212: 0 | J212: 0 | K212: 0 | L212: 0 | M212: 0 | N212: 0 | O212: 0 | P212: 0 | Q212: 0
B213: 189 | H213: 0 | I213: 0 | J213: 0 | K213: 0 | L213: 0 | M213: 0 | N213: 0 | O213: 0 | P213: 0 | Q213: 0
... 36 more rows

Sheet PIVOT
B2: HEADER
B3: Row Labels | C3: Sum of QUOTA | D3: Sum of STORED
B4: SNACKS | C4: 1991.787896 | D4: 1284
B5: FRUIT | C5: 1800.09 | D5: 732
B6: PROTIEN | C6: 1573.792971 | D6: 1004
B7: BEVERAGES | C7: 1477.216714 | D7: 706
B8: PASTA | C8: 827.0127771 | D8: 482
B9: BREAD | C9: 754.3234286 | D9: 504
B10: VEGGIE | C10: 708.2803102 | D10: 198
B11: HOME GOODS | C11: 459.4515429 | D11: 292
B12: DAIRY | C12: 430.6501029 | D12: 218
B13: CEREALS | C13: 402.8772857 | D13: 484
B14: CONDIMENTS | C14: 257.2536784 | D14: 260
B15: SOUP | C15: 252.0126 | D15: 132
B16: SUGARS | C16: 120.006 | D16: 92
B17: Grand Total | C17: 11054.75531 | D17: 6388
H18: PIVOT CHARTS ON DATA TAB ARE COPIED FROM HERE. DATA TAB AND PIVOT TAB ARE COPIED TO TEMPLATES. DO NOT EDIT TEMPLATES. IN CASE OF CORRUPTED FILE, DELETE DATA OR PIVOT TAB AND COPY TEMPLATE TO NEW TAB AND REMOVE "TEMPLATE" FROM THE TAB TITLE.
B25: Row Labels | C25: Sum of QUOTA | D25: Sum of STORED
B26: DINNER | C26: 1895.608163 | D26: 1060
B27: MISC | C27: 995.8441558 | D27: 642
B28: SNACKS | C28: 917.1428571 | D28: 390
B29: General | C29: 738.5714286 | D29: 353
B30: DAILY | C30: 347.1918367 | D30: 387
B31: BAKING | C31: 292.6285714 | D31: 193
B32: Grooming | C32: 216 | D32: 134
B33: COFFEE | C33: 110.4 | D33: 23
B34: Household | C34: 13.71428571 | D34: 12
B35: Grand Total | C35: 5527.101299 | D35: 3194
B48: CATERGORY | C48: BEVERAGES
B50: Row Labels | C50: Sum of QUOTA | D50: Sum of STORED
B51: TOTAL | C51: 738.6452857 | D51: 353
B52: GATORAID PUNCH | C52: 154.2857143 | D52: 78
B53: GATORAID ORANGE | C53: 154.2857143 | D53: 104
B54: GATORAID PURPLE | C54: 154.2857143 | D54: 60
B55: MUSCLE MILK STRAW | C55: 64.28571429 | D55: 24
B56: WATER (FRESH) | C56: 57.14285714 | D56: 24
B57: SODA GINGER | C57: 51.42857143 | D57: 17
B58: GATORAID FROST | C58: 51.42857143 | D58: 16
B59: MJSCLE MILK CHOC | C59: 25.71428571 | D59: 20
B60: MUSCLE MILK | C60: 25.71428571 | D60: 10
B61: Grand Total | C61: 1477.216714 | D61: 706
B65: CATERGORY | C65: BREAD
B67: Row Labels | C67: Sum of QUOTA | D67: Sum of STORED
B68: TOTAL | C68: 377.1805714 | D68: 252
B69: STICKY RICE | C69: 154.2857143 | D69: 90
B70: BREAD MIX | C70: 102.8571429 | D70: 40
B71: FLOUR | C71: 51.42857143 | D71: 50
B72: RICE FLOWER | C72: 38.57142857 | D72: 40
B73: POP CORN KERNELS | C73: 17.14285714 | D73: 24
B74: YEAST PACKETS | C74: 12.85714286 | D74: 8
B75: Grand Total | C75: 754.3234286 | D75: 504
B80: CATERGORY | C80: CONDIMENTS
B82: Row Labels | C82: Sum of QUOTA | D82: Sum of STORED
B83: TOTAL | C83: 128.6332702 | D83: 130
B84: SALT IODIZED | C84: 28.8 | D84: 24
B85: BLUE CHEESE DRES | C85: 25.71428571 | D85: 35
B86: MAYONAISE | C86: 25.71428571 | D86: 30
B87: KETSUP | C87: 24.68571429 | D87: 20
B88: RELISH | C88: 19.59183673 | D88: 16
B89: MUSTARD | C89: 4.114285714 | D89: 5
B90: Grand Total | C90: 257.2536784 | D90: 260
B100: CATERGORY | C100: DAIRY
B102: Row Labels | C102: Sum of QUOTA | D102: Sum of STORED
B103: TOTAL | C103: 215.3358171 | D103: 109
B104: BUTTER PECAN SYRUP | C104: 96 | D104: 17
B105: CONDENSED MILK | C105: 68.57142857 | D105: 48
B106: SWEET CONDENSED | C106: 34.28571429 | D106: 34
B107: MILK POWDER | C107: 16.45714286 | D107: 10
B108: Grand Total | C108: 430.6501029 | D108: 218
B119: CATERGORY | C119: HOME GOODS
B121: Row Labels | C121: Sum of QUOTA | D121: Sum of STORED
B122: TOTAL | C122: 229.7372571 | D122: 146
B123: TOOTH PASTE | C123: 72 | D123: 49
B124: SOAP BARS | C124: 68.57142857 | D124: 19
B125: RAZOR SHAVE | C125: 25.71428571 | D125: 19
B126: TOILET PAPER | C126: 25.71428571 | D126: 27
B127: SHAMPOO | C127: 17.14285714 | D127: 14
B128: DISHWASHER LIQ | C128: 13.71428571 | D128: 12
B129: LAUNDRY DET | C129: 6.857142857 | D129: 6
B130: Grand Total | C130: 459.4515429 | D130: 292
B138: CATERGORY | C138: PASTA
B140: Row Labels | C140: Sum of QUOTA | D140: Sum of STORED
B141: TOTAL | C141: 413.5270629 | D141: 241
B142: PASTA | C142: 102.8571429 | D142: 86
B143: Ramen Noodles, beef | C143: 102.8571429 | D143: 14
B144: Ramen Noodles, chicken | C144: 51.42857143 | D144: 24
B145: Rice, wild | C145: 41.14285714 | D145: 43
B146: Spaghetti and Macaroni | C146: 34.28571429 | D146: 23
B147: Spaghetti w/ sauce, canned | C147: 34.28571429 | D147: 20
B148: PASTA SAUCE | C148: 32.91428571 | D148: 14
B149: STICKY RICE | C149: 13.71428571 | D149: 17
B150: Grand Total | C150: 827.0127771 | D150: 482
B159: CATERGORY | C159: SUGARS
B161: Row Labels | C161: Sum of QUOTA | D161: Sum of STORED
B162: TOTAL | C162: 60.006 | D162: 46
B163: MAPLE SYRUP | C163: 25.71428571 | D163: 14
B164: HONEY | C164: 14.4 | D164: 6
B165: SUGAR LT BRN | C165: 6.857142857 | D165: 7
B166: BROWN SUGAR | C166: 6.857142857 | D166: 16
B167: SUGAR | C167: 6.171428571 | D167: 3
B168: Grand Total | C168: 120.006 | D168: 92
B179: CATERGORY | C179: FRUIT
B181: Row Labels | C181: Sum of QUOTA | D181: Sum of STORED
B182: TOTAL | C182: 900.09 | D182: 366
B183: FRUIT JUICE | C183: 514.2857143 | D183: 167
B184: APPLE SLICES | C184: 102.8571429 | D184: 56
B185: MANDARIN ORANGES | C185: 102.8571429 | D185: 32
B186: BLUEBERRIES | C186: 51.42857143 | D186: 40
B187: CHERRIES | C187: 51.42857143 | D187: 30
B188: FRUIT SALAD | C188: 51.42857143 | D188: 17
B189: APPLESAUCE | C189: 25.71428571 | D189: 24
B190: PEACHES | C190: 0 | D190: 0
B191: STRAWBERRIES | C191: 0 | D191: 0
B192: PIE FILLING | C192: 0 | D192: 0
B193: PINEAPPLE | C193: 0 | D193: 0
B194: Grand Total | C194: 1800.09 | D194: 732
B203: CATERGORY | C203: PROTIEN
B205: Row Labels | C205: Sum of QUOTA | D205: Sum of STORED
B206: TOTAL | C206: 786.9358286 | D206: 502
B207: DEHYDRAED EGGS | C207: 411.4285714 | D207: 175
B208: CANNED TUNA | C208: 205.7142857 | D208: 201
B209: JERKEY | C209: 41.14285714 | D209: 16
B210: SPAM | C210: 34.28571429 | D210: 34
B211: CANNED CHICKEN | C211: 34.28571429 | D211: 36
B212: CANNED HAM | C212: 25.71428571 | D212: 22
B213: CANNED BEEF | C213: 17.14285714 | D213: 3
B214: EGG BEATERS | C214: 17.14285714 | D214: 15
B215: Grand Total | C215: 1573.792971 | D215: 1004
B227: CATERGORY | C227: SNACKS
B229: Row Labels | C229: Sum of QUOTA | D229: Sum of STORED
B230: TOTAL | C230: 995.9437403 | D230: 642
B231: JESSI CHIPS | C231: 411.4285714 | D231: 204
B232: CHEESE DIP | C232: 102.8571429 | D232: 105
B233: SCOTT CHIPS | C233: 102.8571429 | D233: 56
B234: SALSA | C234: 102.8571429 | D234: 100
B235: OTHER DIP | C235: 102.8571429 | D235: 80
B236: WHITE CHOCOLATE | C236: 51.42857143 | D236: 40
B237: PEANUT BUTTER | C237: 51.42857143 | D237: 18
B238: CHOCOLATE | C238: 51.42857143 | D238: 34
B239: ALMONDS | C239: 18.7012987 | D239: 5
B240: Grand Total | C240: 1991.787896 | D240: 1284
B247: CATERGORY | C247: CEREALS
B249: Row Labels | C249: Sum of QUOTA | D249: Sum of STORED
B250: TOTAL | C250: 201.4487143 | D250: 242
B251: DADS CEREAL | C251: 68.57142857 | D251: 57
B252: JESSI CEREAL | C252: 68.57142857 | D252: 76
B253: OATS ROLLED | C253: 25.71428571 | D253: 36
B254: CREAM OF WHEAT | C254: 25.71428571 | D254: 34
B255: BREAKFAST BARS | C255: 12.85714286 | D255: 39
B256: Grand Total | C256: 402.8772857 | D256: 484
B266: CATERGORY | C266: SOUP
B268: Row Labels | C268: Sum of QUOTA | D268: Sum of STORED
B269: TOTAL | C269: 126.0126 | D269: 66
B270: BEEF STEW | C270: 51.42857143 | D270: 16
B271: CANNED SPAGHETTI | C271: 25.71428571 | D271: 14
B272: RAVIOLI | C272: 12.85714286 | D272: 3
B273: SINGLE SERVE DRY | C273: 10.28571429 | D273: 23
B274: VEG SOUP | C274: 8.571428571 | D274: 3
B275: CHICKEN SOUP | C275: 8.571428571 | D275: 2
B276: CHICKEN BROTH | C276: 5.142857143 | D276: 1
B277: BEEF BROTH | C277: 3.428571429 | D277: 4
B278: OTHER | C278: 0 | D278: 0
B279: Grand Total | C279: 252.0126 | D279: 132
B287: CATERGORY | C287: VEGGIE
B289: Row Labels | C289: Sum of QUOTA | D289: Sum of STORED
B290: TOTAL | C290: 354.1578612 | D290: 99
B291: GARLIC FRESH | C291: 117.5510204 | D291: 16
B292: POTATO FRESH | C292: 102.8571429 | D292: 14
B293: PEAS | C293: 51.42857143 | D293: 16
B294: BAKED BEANS | C294: 25.71428571 | D294: 32
B295: MUSHROOMS | C295: 20.57142857 | D295: 8
B296: INSTANT POTATO | C296: 13.71428571 | D296: 4
B297: CORN | C297: 8.571428571 | D297: 3
B298: GREEN BEANS | C298: 8.571428571 | D298: 2
B299: CANNED POTATO | C299: 5.142857143 | D299: 4
B300: Grand Total | C300: 708.2803102 | D300: 198
B311: END

Sheet DATA TEMPLATE
D1: .
I2: WELCOME TO INKYS FOOD STORAGE PLANNER by SCOTTY THE BACKYARD RENEGADE | Z2: THANK YOU FOR DOWNLOADING INKYS FOOD STORAGE PLANNER, A LONG OR SHORT TERM PROVISIONS / INVENTORY PLANNER. TO START, IN THE YELLOW BOXES ADJUST "ADULTS SERVED", "MONTHS" AND "REQUIRED SERVINGS FOR ONE ADULT PER WEEK" TO ESTABLISH YOUR GOALS. ON THE LEFT SIDE OF THE TABLE ENTER YOUR CATERGORY, CLASS, ITEM, PACKAGE SIZE, AND SERVING SIZE. NEW ITEMS WITH EXISING "CATERGORY" AND "CLASS" WILL BE DISPLAYED IN THE "OVERVIEW" AND "CLASS" CHARTS. EXPERIENCED USERS MAY ADD A PIVOT CHART FOR A NEW "CATERGORY" ON THE "PIVOT" SHEET AND COPY TO THE "DATA" SHEET. NEXT ENTER AMOUNT OF PACKS "STORED" HOW MANY "SVG/PAK, AND ALLOCATED "SVG/WK" FOR EACH ADULT. IN COLUMN X, FILL IN "REQUIRED" SERVINGS FOR ONE ADULT PER WEEK". WHEN YOUR ALLOCATION (COLUMN J) IS EQUAL TO OR EXCEEDS YOUR REQUIREMENTS, THE TEXT IN THE "TOTAL" ROW WILL TURN FROM RED AND THE BOX WILL TURN GREEN, AS WILL THE "REQUIRED SERVINGS FOR ONE ADULT PER WEEK" (COLUMN X) YOU CAN SEE THE PROGRESS OF EACH ITEM IN COLUMN N - Q AS YOU ADD "STORED" PACKS. THE "TOTAL" ROW AT THE BOTTOM OF EACH CATERGORY WILL ALSO SHOW SOLID GREEN WHEN YOU HAVE STORED ENGOUH PRODUCT TO MEET YOUR PLAN. THIS IS A PROTECTED DATA SHEET / NO PASSWORD BEST VIEWED AT 130% THANKS FOR DOWNLOADING AND LET ME KNOW WHAT CHANGES OR UPDATES YOU WOULD LIKE TO SEE! THANKS, SCOTTY. THE BACKYARD RENEGADE.
H3: FOR BEST FULL SCREEN VIEWING SET ZOOM TO 130% PROTECTED SHEET / NO PASSWORD SET
C4: PLEASE STOP BY | E4: =HYPERLINK("http://www.backyardrenegade.com/downloads/index.htm","WWW.BACKYARDRENEGADE.COM/DOWNLOADS") -> WWW.BACKYARDRENEGADE.COM/DOWNLOADS | J4: FOR UPDATES ON THIS AND ALL OF MY OTHER PROJECTS, I EXPECT THIS PROGRAM TO GO THROUGH A LOT OF CHANGES SO STAY IN TOUCH!
C5: I AM PREPARING MANY PROJECTS INCLUDING BUT NOT LIMITED TO SILK SCREEN, LEATHER WORK, DESIGN AND BUILD A SMALL FAMILY BOAT, WELDING, AUTO AND MOTOR DIAGNOSTICS AND REPAIR.
C6: FROM SOFTWARE TO WEBSITES TO BOAT PLANS, I HAVE ALWAYS TRIED TO MAKE SOMETHING AVAILABLE FOR EVERYONE. INKYS FOOD STORAGE PROGRAM IS FREEWARE AND I AM HAPPY TO FREELY PASS IT ALONG…
C7: HOWEVER IF YOU WOULD LIKE TO HELP WITH THE BOAT BUILD FUND OR SUPPORT ANY OF MY OTHER ON LINE PROJECTS CHECK OUT THE LINKS OVER THERE.>>>>>>>>>>>>>>>>>>>>>>>>
H20: FILL IN ADULTS SERVED | L20: FILL IN MONTHS
B21: V 3_1 2022 0802 1600 COPYRIGHT 2022 | H21: ADULTS SERVED | J21: 4 | L21: MONTHS | N21: 24
C23: ENTER CATERGORY, CLASS, DISC, PACKAGE INFO | H23: STOCK, PACK, SVGS/WK/1 | K23: "REFRESH ALL" 2 UPDATE CHARTS OR "AUTO REFRESH" SEE NOTES.*
B24: LINE | C24: CATERGORY | D24: CLASS | E24: ITEM | F24: PAK | G24: SVG | H24: STORED | I24: SVG/PAK | J24: SVG/WK2 | K24: QUOTA | L24: STORED2 | M24: DEFICIT | N24: 25% | O24: 50% | P24: 75% | Q24: 100%
B25: 1 | C25: BEVERAGES | D25: General | E25: GATORAID PURPLE | F25: 8x16oz | G25: 1CAN | H25: 60 | I25: 8 | J25: 3 | K25: =IFERROR((J25/I25)/7,0)*(SUMPRODUCT($N$21*30))*$J$21 -> 154.2857143 | L25: =IFERROR(H25,0) -> 60 | M25: =IFERROR(K25-L25,0) -> 94.28571429 | N25: =IFERROR(L25/K25,0)*4 -> 1.555555556 | O25: =IFERROR(L25/K25,0)*2 -> 0.7777777778 | P25: =IFERROR(L25/K25,0)*1.34 -> 0.5211111111 | Q25: =IFERROR(L25/K25,0) -> 0.3888888889 | S25: Required servings for one adult per week | X25: 48
B26: 2 | C26: BEVERAGES | D26: General | E26: GATORAID ORANGE | F26: 8x16oz | G26: 1CAN | H26: 104 | I26: 8 | J26: 3 | K26: =IFERROR((J26/I26)/7,0)*(SUMPRODUCT($N$21*30))*$J$21 -> 154.2857143 | L26: =IFERROR(H26,0) -> 104 | M26: =IFERROR(K26-L26,0) -> 50.28571429 | N26: 2.696296296 | O26: =IFERROR(L26/K26,0)*2 -> 1.348148148 | P26: 0.9032592593 | Q26: 0.6740740741 | S26: Total servings to meet plans goal | X26: =IFERROR($J$21*$N$21,0)*X25 -> 4608
B27: 3 | C27: BEVERAGES | D27: General | E27: GATORAID PUNCH | F27: 8x16oz | G27: 1CAN | H27: 78 | I27: 8 | J27: 3 | K27: 154.2857143 | L27: =IFERROR(H27,0) -> 78 | M27: 76.28571429 | N27: 2.022222222 | O27: 1.011111111 | P27: 0.6774444444 | Q27: 0.5055555556
B28: 4 | C28: BEVERAGES | D28: General | E28: GATORAID FROST | F28: 8x16oz | G28: 1CAN | H28: 16 | I28: 8 | J28: 1 | K28: 51.42857143 | L28: 16 | M28: 35.42857143 | N28: 1.244444444 | O28: 0.6222222222 | P28: 0.4168888889 | Q28: 0.3111111111
B29: 5 | C29: BEVERAGES | D29: General | E29: SODA GINGER | F29: 24x12oz | G29: 1CAN | H29: 17 | I29: 24 | J29: 3 | K29: 51.42857143 | L29: 17 | M29: 34.42857143 | N29: 1.322222222 | O29: 0.6611111111 | P29: 0.4429444444 | Q29: 0.3305555556
B30: 6 | C30: BEVERAGES | D30: General | E30: MUSCLE MILK | F30: 2lbs | G30: 1SCOOP | H30: 10 | I30: 32 | J30: 2 | K30: 25.71428571 | L30: 10 | M30: 15.71428571 | N30: 1.555555556 | O30: 0.7777777778 | P30: 0.5211111111 | Q30: 0.3888888889
B31: 7 | C31: BEVERAGES | D31: General | E31: MJSCLE MILK CHOC | F31: 2lbs | G31: 1SCOOP | H31: 20 | I31: 32 | J31: 2 | K31: 25.71428571 | L31: 20 | M31: 5.714285714 | N31: 3.111111111 | O31: 1.555555556 | P31: 1.042222222 | Q31: 0.7777777778
B32: 8 | C32: BEVERAGES | D32: General | E32: MUSCLE MILK STRAW | F32: 1LB | G32: 1SCOOP | H32: 24 | I32: 32 | J32: 5 | K32: 64.28571429 | L32: 24 | M32: 40.28571429 | N32: 1.493333333 | O32: 0.7466666667 | P32: 0.5002666667 | Q32: 0.3733333333 | Z32: SOCIAL MEDIA AND DOWNLOADS
B33: 9 | C33: BEVERAGES | D33: General | E33: WATER (FRESH) | F33: 5GAL | G33: 80Z | H33: 24 | I33: 180 | J33: 25 | K33: 57.14285714 | L33: 24 | M33: 33.14285714 | N33: 1.68 | O33: 0.84 | P33: 0.5628 | Q33: 0.42 | Z33: BACKYARDRENEGADE.COM
B34: 10 | H34: 0 | I34: 0 | J34: 0 | K34: 0 | L34: 0 | M34: 0 | N34: 0 | O34: 0 | P34: 0 | Q34: 0 | Z34: TWITCH.TV/BACKYARDRENEGADE
B35: 11 | H35: 0 | I35: 0 | J35: 0 | K35: 0 | L35: 0 | M35: 0 | N35: 0 | O35: 0 | P35: 0 | Q35: 0 | Z35: YOUTUBE.COM/BACKYARDRENEGADE
B36: 12 | H36: 0 | I36: 0 | J36: 0 | K36: 0 | L36: 0 | M36: 0 | N36: 0 | O36: 0 | P36: 0 | Q36: 0 | Z36: =HYPERLINK("http://www.backyardrenegade.com/downloads/index.htm","CLICK HERE FOR UPDATES AND DOWNLOADS") -> CLICK HERE FOR UPDATES AND DOWNLOADS
B37: 13 | H37: 0 | I37: 0 | J37: 0 | K37: 0 | L37: 0 | M37: 0 | N37: 0 | O37: 0 | P37: 0 | Q37: 0
B38: 14 | H38: 0 | I38: 0 | J38: 0 | K38: 0 | L38: 0 | M38: 0 | N38: 0 | O38: 0 | P38: 0 | Q38: 0 | Z38: DONATIONS ARE ACCEPTED… :)
B39: 15 | C39: BEVERAGES | E39: TOTAL | H39: =SUBTOTAL(109,H25:H38) -> 353 | J39: =SUBTOTAL(109,J25:J38) -> 47 | K39: =SUM(K25:K38)*1.0001 -> 738.6452857 | L39: =SUM(L25:L38)*1.0001 -> 353.0353 | M39: =SUBTOTAL(109,M25:M38) -> 385.5714286 | N39: 1.911798839 | O39: 0.9558994197 | P39: 0.6404526112 | Q39: 0.4779497099 | Z39: CASHAPP AT [$BACKYARDRENEGADE]
B40: 16 | J40: 0 | Z40: VENMO AT [@BACKYARDRENEGADE]
B41: 17 | C41: BREAD | D41: BAKING | E41: BREAD MIX | F41: 1 loaf | G41: 5 | H41: 40 | I41: 8 | J41: 2 | K41: =IFERROR((J41/I41)/7,0)*(SUMPRODUCT($N$21*30))*$J$21 -> 102.8571429 | L41: =IFERROR(H41,0) -> 40 | M41: =IFERROR(K41-L41,0) -> 62.85714286 | N41: =IFERROR(L41/K41,0)*4 -> 1.555555556 | O41: =IFERROR(L41/K41,0)*2 -> 0.7777777778 | P41: =IFERROR(L41/K41,0)*1.34 -> 0.5211111111 | Q41: =IFERROR(L41/K41,0) -> 0.3888888889 | S41: Required servings for one adult per week | X41: 14 | Z41: AND THE BOAT BUILDING FUND IS AT:
B42: 18 | C42: BREAD | D42: DINNER | E42: STICKY RICE | F42: 5 lbs | G42: 1CAN | H42: 90 | I42: 8 | J42: 3 | K42: =IFERROR((J42/I42)/7,0)*(SUMPRODUCT($N$21*30))*$J$21 -> 154.2857143 | L42: =IFERROR(H42,0) -> 90 | M42: =IFERROR(K42-L42,0) -> 64.28571429 | N42: 2.333333333 | O42: 1.166666667 | P42: 0.7816666667 | Q42: 0.5833333333 | S42: Total servings to meet plans goal | X42: =IFERROR($J$21*$N$21,0)*X41 -> 1344 | Z42: STREAMLABS.COM/BACKYARDRENEGADE1
B43: 19 | C43: BREAD | D43: BAKING | E43: FLOUR | F43: 5 lbs | G43: 1CAN | H43: 50 | I43: 8 | J43: 1 | K43: 51.42857143 | L43: 50 | M43: 1.428571429 | N43: 3.888888889 | O43: 1.944444444 | P43: 1.302777778 | Q43: 0.9722222222
B44: 20 | C44: BREAD | D44: SNACKS | E44: POP CORN KERNELS | F44: 1 lb | G44: 1CAN | H44: 24 | I44: 24 | J44: 1 | K44: 17.14285714 | L44: 24 | M44: -6.857142857 | N44: 5.6 | O44: 2.8 | P44: 1.876 | Q44: 1.4
B45: 21 | C45: BREAD | D45: DINNER | E45: RICE FLOWER | F45: 9 CAN | G45: 1CAN | H45: 40 | I45: 32 | J45: 3 | K45: 38.57142857 | L45: 40 | M45: -1.428571429 | N45: 4.148148148 | O45: 2.074074074 | P45: 1.38962963 | Q45: 1.037037037
B46: 22 | C46: BREAD | D46: BAKING | E46: YEAST PACKETS | F46: 1 PAK | G46: 8/pack | H46: 8 | I46: 32 | J46: 1 | K46: 12.85714286 | L46: 8 | M46: 4.857142857 | N46: 2.488888889 | O46: 1.244444444 | P46: 0.8337777778 | Q46: 0.6222222222
B47: 23 | H47: 0 | I47: 0 | J47: 0 | K47: 0 | L47: 0 | M47: 0 | N47: 0 | O47: 0 | P47: 0 | Q47: 0
B48: 24 | H48: 0 | I48: 0 | J48: 0 | K48: 0 | L48: 0 | M48: 0 | N48: 0 | O48: 0 | P48: 0 | Q48: 0
B49: 25 | H49: 0 | I49: 0 | J49: 0 | K49: 0 | L49: 0 | M49: 0 | N49: 0 | O49: 0 | P49: 0 | Q49: 0
B50: 26 | H50: 0 | I50: 0 | J50: 0 | K50: 0 | L50: 0 | M50: 0 | N50: 0 | O50: 0 | P50: 0 | Q50: 0
B51: 27 | H51: 0 | I51: 0 | J51: 0 | K51: 0 | L51: 0 | M51: 0 | N51: 0 | O51: 0 | P51: 0 | Q51: 0
B52: 28 | H52: 0 | I52: 0 | J52: 0 | K52: 0 | L52: 0 | M52: 0 | N52: 0 | O52: 0 | P52: 0 | Q52: 0
B53: 29 | H53: 0 | I53: 0 | J53: 0 | K53: 0 | L53: 0 | M53: 0 | N53: 0 | O53: 0 | P53: 0 | Q53: 0
B54: 30 | H54: 0 | I54: 0 | J54: 0 | K54: 0 | L54: 0 | M54: 0 | N54: 0 | O54: 0 | P54: 0 | Q54: 0
B55: 31 | C55: BREAD | E55: TOTAL | H55: =SUBTOTAL(109,H41:H54) -> 252 | J55: =SUBTOTAL(109,J40:J54) -> 11 | K55: =SUM(K41:K54)*1.0001 -> 377.1805714 | L55: =SUM(L41:L54)*1.0001 -> 252.0252 | M55: =SUBTOTAL(109,M41:M54) -> 125.1428571 | N55: 2.672727273 | O55: 1.336363636 | P55: 0.8953636364 | Q55: 0.6681818182
B56: 32
B57: 33 | C57: CONDIMENTS | D57: DAILY | E57: MAYONAISE | F57: 2 CAN | G57: 5 | H57: 30 | I57: 64 | J57: 4 | K57: =IFERROR((J57/I57)/7,0)*(SUMPRODUCT($N$21*30))*$J$21 -> 25.71428571 | L57: =IFERROR(H57,0) -> 30 | M57: =IFERROR(K57-L57,0) -> -4.285714286 | N57: =IFERROR(L57/K57,0)*4 -> 4.666666667 | O57: =IFERROR(L57/K57,0)*2 -> 2.333333333 | P57: =IFERROR(L57/K57,0)*1.34 -> 1.563333333 | Q57: =IFERROR(L57/K57,0) -> 1.166666667 | S57: Required servings for one adult per week | X57: 21
B58: 34 | C58: CONDIMENTS | D58: DAILY | E58: KETSUP | F58: 3 CAN | G58: 1CAN | H58: 20 | I58: 50 | J58: 3 | K58: =IFERROR((J58/I58)/7,0)*(SUMPRODUCT($N$21*30))*$J$21 -> 24.68571429 | L58: =IFERROR(H58,0) -> 20 | M58: =IFERROR(K58-L58,0) -> 4.685714286 | N58: 3.240740741 | O58: 1.62037037 | P58: 1.085648148 | Q58: 0.8101851852 | S58: Total servings to meet plans goal | X58: =IFERROR($J$21*$N$21,0)*X57 -> 2016
B59: 35 | C59: CONDIMENTS | D59: DAILY | E59: MUSTARD | F59: 4 CAN | G59: 1CAN | H59: 5 | I59: 100 | J59: 1 | K59: 4.114285714 | L59: 5 | M59: -0.8857142857 | N59: 4.861111111 | O59: 2.430555556 | P59: 1.628472222 | Q59: 1.215277778
B60: 36 | C60: CONDIMENTS | D60: DAILY | E60: RELISH | F60: 5 CAN | G60: 1CAN | H60: 16 | I60: 42 | J60: 2 | K60: 19.59183673 | L60: 16 | M60: 3.591836735 | N60: 3.266666667 | O60: 1.633333333 | P60: 1.094333333 | Q60: 0.8166666667
B61: 37 | C61: CONDIMENTS | D61: DAILY | E61: BLUE CHEESE DRES | F61: 9 CAN | G61: 1CAN | H61: 35 | I61: 32 | J61: 2 | K61: 25.71428571 | L61: 35 | M61: -9.285714286 | N61: 5.444444444 | O61: 2.722222222 | P61: 1.823888889 | Q61: 1.361111111
B62: 38 | C62: CONDIMENTS | D62: DAILY | E62: SALT IODIZED | F62: 11 CAN | G62: 1CAN | H62: 24 | I62: 100 | J62: 7 | K62: 28.8 | L62: 24 | M62: 4.8 | N62: 3.333333333 | O62: 1.666666667 | P62: 1.116666667 | Q62: 0.8333333333
B63: 39 | H63: 0 | I63: 0 | J63: 0 | K63: 0 | L63: 0 | M63: 0 | N63: 0 | O63: 0 | P63: 0 | Q63: 0
B64: 40 | H64: 0 | I64: 0 | J64: 0 | K64: 0 | L64: 0 | M64: 0 | N64: 0 | O64: 0 | P64: 0 | Q64: 0
B65: 41 | H65: 0 | I65: 0 | J65: 0 | K65: 0 | L65: 0 | M65: 0 | N65: 0 | O65: 0 | P65: 0 | Q65: 0
B66: 42 | H66: 0 | I66: 0 | J66: 0 | K66: 0 | L66: 0 | M66: 0 | N66: 0 | O66: 0 | P66: 0 | Q66: 0
B67: 43 | H67: 0 | I67: 0 | J67: 0 | K67: 0 | L67: 0 | M67: 0 | N67: 0 | O67: 0 | P67: 0 | Q67: 0
B68: 44 | H68: 0 | I68: 0 | J68: 0 | K68: 0 | L68: 0 | M68: 0 | N68: 0 | O68: 0 | P68: 0 | Q68: 0
B69: 45 | H69: 0 | I69: 0 | J69: 0 | K69: 0 | L69: 0 | M69: 0 | N69: 0 | O69: 0 | P69: 0 | Q69: 0
B70: 46 | H70: 0 | I70: 0 | J70: 0 | K70: 0 | L70: 0 | M70: 0 | N70: 0 | O70: 0 | P70: 0 | Q70: 0
B71: 47 | C71: CONDIMENTS | E71: TOTAL | H71: =SUBTOTAL(109,H57:H70) -> 130 | J71: =SUBTOTAL(109,J57:J70) -> 19 | K71: =SUM(K57:K70)*1.0001 -> 128.6332702 | L71: =SUM(L57:L70)*1.0001 -> 130.013 | M71: =SUBTOTAL(109,M57:M70) -> -1.379591837 | N71: 4.04290429 | O71: 2.021452145 | P71: 1.354372937 | Q71: 1.010726073
B72: 48
B73: 49 | C73: DAIRY | D73: BAKING | E73: MILK POWDER | F73: 2 CAN | G73: 5 | H73: 10 | I73: 50 | J73: 2 | K73: =IFERROR((J73/I73)/7,0)*(SUMPRODUCT($N$21*30))*$J$21 -> 16.45714286 | L73: =IFERROR(H73,0) -> 10 | M73: =IFERROR(K73-L73,0) -> 6.457142857 | N73: =IFERROR(L73/K73,0)*4 -> 2.430555556 | O73: =IFERROR(L73/K73,0)*2 -> 1.215277778 | P73: =IFERROR(L73/K73,0)*1.34 -> 0.8142361111 | Q73: =IFERROR(L73/K73,0) -> 0.6076388889 | S73: Required servings for one adult per week | X73: 10
B74: 50 | C74: DAIRY | D74: BAKING | E74: CONDENSED MILK | F74: 3 CAN | G74: 1CAN | H74: 48 | I74: 12 | J74: 2 | K74: =IFERROR((J74/I74)/7,0)*(SUMPRODUCT($N$21*30))*$J$21 -> 68.57142857 | L74: =IFERROR(H74,0) -> 48 | M74: =IFERROR(K74-L74,0) -> 20.57142857 | N74: 2.8 | O74: 1.4 | P74: 0.938 | Q74: 0.7 | S74: Total servings to meet plans goal | X74: =IFERROR($J$21*$N$21,0)*X73 -> 960
B75: 51 | C75: DAIRY | D75: BAKING | E75: SWEET CONDENSED | F75: 4 CAN | G75: 1CAN | H75: 34 | I75: 12 | J75: 1 | K75: 34.28571429 | L75: 34 | M75: 0.2857142857 | N75: 3.966666667 | O75: 1.983333333 | P75: 1.328833333 | Q75: 0.9916666667
B76: 52 | C76: DAIRY | D76: COFFEE | E76: BUTTER PECAN SYRUP | F76: 5 CAN | G76: 1CAN | H76: 17 | I76: 30 | J76: 7 | K76: 96 | L76: 17 | M76: 79 | N76: 0.7083333333 | O76: 0.3541666667 | P76: 0.2372916667 | Q76: 0.1770833333
B77: 53 | H77: 0 | I77: 0 | J77: 0 | K77: 0 | L77: 0 | M77: 0 | N77: 0 | O77: 0 | P77: 0 | Q77: 0
B78: 54 | H78: 0 | I78: 0 | J78: 0 | K78: 0 | L78: 0 | M78: 0 | N78: 0 | O78: 0 | P78: 0 | Q78: 0
B79: 55 | H79: 0 | I79: 0 | J79: 0 | K79: 0 | L79: 0 | M79: 0 | N79: 0 | O79: 0 | P79: 0 | Q79: 0
B80: 56 | H80: 0 | I80: 0 | J80: 0 | K80: 0 | L80: 0 | M80: 0 | N80: 0 | O80: 0 | P80: 0 | Q80: 0
B81: 57 | H81: 0 | I81: 0 | J81: 0 | K81: 0 | L81: 0 | M81: 0 | N81: 0 | O81: 0 | P81: 0 | Q81: 0
B82: 58 | H82: 0 | I82: 0 | J82: 0 | K82: 0 | L82: 0 | M82: 0 | N82: 0 | O82: 0 | P82: 0 | Q82: 0
B83: 59 | H83: 0 | I83: 0 | J83: 0 | K83: 0 | L83: 0 | M83: 0 | N83: 0 | O83: 0 | P83: 0 | Q83: 0
B84: 60 | H84: 0 | I84: 0 | J84: 0 | K84: 0 | L84: 0 | M84: 0 | N84: 0 | O84: 0 | P84: 0 | Q84: 0
B85: 61 | H85: 0 | I85: 0 | J85: 0 | K85: 0 | L85: 0 | M85: 0 | N85: 0 | O85: 0 | P85: 0 | Q85: 0
B86: 62 | H86: 0 | I86: 0 | J86: 0 | K86: 0 | L86: 0 | M86: 0 | N86: 0 | O86: 0 | P86: 0 | Q86: 0
B87: 63 | C87: DAIRY | E87: TOTAL | H87: =SUBTOTAL(109,H73:H86) -> 109 | J87: =SUBTOTAL(109,J73:J86) -> 12 | K87: =SUM(K73:K86)*1.0001 -> 215.3358171 | L87: =SUM(L73:L86)*1.0001 -> 109.0109 | M87: =SUBTOTAL(109,M73:M86) -> 106.3142857 | N87: 2.024946921 | O87: 1.012473461 | P87: 0.6783572187 | Q87: 0.5062367304
B88: 64
B89: 65 | C89: HOME GOODS | D89: Grooming | E89: LAUNDRY DET | F89: 2 CAN | G89: 5 | H89: 6 | I89: 60 | J89: 1 | K89: =IFERROR((J89/I89)/7,0)*(SUMPRODUCT($N$21*30))*$J$21 -> 6.857142857 | L89: =IFERROR(H89,0) -> 6 | M89: =IFERROR(K89-L89,0) -> 0.8571428571 | N89: =IFERROR(L89/K89,0)*4 -> 3.5 | O89: =IFERROR(L89/K89,0)*2 -> 1.75 | P89: =IFERROR(L89/K89,0)*1.34 -> 1.1725 | Q89: =IFERROR(L89/K89,0) -> 0.875 | S89: Required servings for one adult per week | X89: 14
B90: 66 | C90: HOME GOODS | D90: Grooming | E90: TOOTH PASTE | F90: 3 CAN | G90: 1CAN | H90: 49 | I90: 40 | J90: 7 | K90: =IFERROR((J90/I90)/7,0)*(SUMPRODUCT($N$21*30))*$J$21 -> 72 | L90: =IFERROR(H90,0) -> 49 | M90: =IFERROR(K90-L90,0) -> 23 | N90: 2.722222222 | O90: 1.361111111 | P90: 0.9119444444 | Q90: 0.6805555556 | S90: Total servings to meet plans goal | X90: =IFERROR($J$21*$N$21,0)*X89 -> 1344
B91: 67 | C91: HOME GOODS | D91: Household | E91: DISHWASHER LIQ | F91: 4 CAN | G91: 1CAN | H91: 12 | I91: 60 | J91: 2 | K91: 13.71428571 | L91: 12 | M91: 1.714285714 | N91: 3.5 | O91: 1.75 | P91: 1.1725 | Q91: 0.875
B92: 68 | C92: HOME GOODS | D92: Grooming | E92: SHAMPOO | F92: 5 CAN | G92: 1CAN | H92: 14 | I92: 24 | J92: 1 | K92: 17.14285714 | L92: 14 | M92: 3.142857143 | N92: 3.266666667 | O92: 1.633333333 | P92: 1.094333333 | Q92: 0.8166666667
B93: 69 | C93: HOME GOODS | D93: Grooming | E93: SOAP BARS | F93: 9 CAN | G93: 1CAN | H93: 19 | I93: 24 | J93: 4 | K93: 68.57142857 | L93: 19 | M93: 49.57142857 | N93: 1.108333333 | O93: 0.5541666667 | P93: 0.3712916667 | Q93: 0.2770833333
B94: 70 | C94: HOME GOODS | D94: grooming | E94: RAZOR SHAVE | F94: 11 CAN | G94: 1CAN | H94: 19 | I94: 4 | J94: 0.25 | K94: 25.71428571 | L94: 19 | M94: 6.714285714 | N94: 2.955555556 | O94: 1.477777778 | P94: 0.9901111111 | Q94: 0.7388888889
B95: 71 | C95: HOME GOODS | D95: grooming | E95: TOILET PAPER | F95: pack | G95: serving | H95: 27 | I95: 16 | J95: 1 | K95: 25.71428571 | L95: 27 | M95: -1.285714286 | N95: 4.2 | O95: 2.1 | P95: 1.407 | Q95: 1.05
B96: 72 | H96: 0 | I96: 0 | J96: 0 | K96: 0 | L96: 0 | M96: 0 | N96: 0 | O96: 0 | P96: 0 | Q96: 0
B97: 73 | H97: 0 | I97: 0 | J97: 0 | K97: 0 | L97: 0 | M97: 0 | N97: 0 | O97: 0 | P97: 0 | Q97: 0
B98: 74 | H98: 0 | I98: 0 | J98: 0 | K98: 0 | L98: 0 | M98: 0 | N98: 0 | O98: 0 | P98: 0 | Q98: 0
B99: 75 | H99: 0 | I99: 0 | J99: 0 | K99: 0 | L99: 0 | M99: 0 | N99: 0 | O99: 0 | P99: 0 | Q99: 0
B100: 76 | H100: 0 | I100: 0 | J100: 0 | K100: 0 | L100: 0 | M100: 0 | N100: 0 | O100: 0 | P100: 0 | Q100: 0
B101: 77 | H101: 0 | I101: 0 | J101: 0 | K101: 0 | L101: 0 | M101: 0 | N101: 0 | O101: 0 | P101: 0 | Q101: 0
B102: 78 | H102: 0 | I102: 0 | J102: 0 | K102: 0 | L102: 0 | M102: 0 | N102: 0 | O102: 0 | P102: 0 | Q102: 0
B103: 79 | C103: HOME GOODS | E103: TOTAL | H103: =SUBTOTAL(109,H89:H102) -> 146 | J103: =SUBTOTAL(109,J89:J102) -> 16.25 | K103: =SUM(K89:K102)*1.0001 -> 229.7372571 | L103: =SUM(L89:L102)*1.0001 -> 146.0146 | M103: =SUBTOTAL(109,M89:M102) -> 83.71428571 | N103: 2.542288557 | O103: 1.271144279 | P103: 0.8516666667 | Q103: 0.6355721393
B104: 80
B105: 81 | C105: PASTA | D105: DINNER | E105: PASTA | F105: 2 CAN | G105: 5 | H105: 86 | I105: 8 | J105: 2 | K105: =IFERROR((J105/I105)/7,0)*(SUMPRODUCT($N$21*30))*$J$21 -> 102.8571429 | L105: =IFERROR(H105,0) -> 86 | M105: =IFERROR(K105-L105,0) -> 16.85714286 | N105: =IFERROR(L105/K105,0)*4 -> 3.344444444 | O105: =IFERROR(L105/K105,0)*2 -> 1.672222222 | P105: =IFERROR(L105/K105,0)*1.34 -> 1.120388889 | Q105: =IFERROR(L105/K105,0) -> 0.8361111111 | S105: Required servings for one adult per week | X105: 15
B106: 82 | C106: PASTA | D106: DINNER | E106: PASTA SAUCE | F106: 3 CAN | G106: 1CAN | H106: 14 | I106: 25 | J106: 2 | K106: =IFERROR((J106/I106)/7,0)*(SUMPRODUCT($N$21*30))*$J$21 -> 32.91428571 | L106: =IFERROR(H106,0) -> 14 | M106: =IFERROR(K106-L106,0) -> 18.91428571 | N106: 1.701388889 | O106: 0.8506944444 | P106: 0.5699652778 | Q106: 0.4253472222 | S106: Total servings to meet plans goal | X106: =IFERROR($J$21*$N$21,0)*X105 -> 1440
B107: 83 | C107: PASTA | D107: DINNER | E107: Ramen Noodles, beef | F107: 4 CAN | G107: 1CAN | H107: 14 | I107: 8 | J107: 2 | K107: 102.8571429 | L107: 14 | M107: 88.85714286 | N107: 0.5444444444 | O107: 0.2722222222 | P107: 0.1823888889 | Q107: 0.1361111111
B108: 84 | C108: PASTA | D108: DINNER | E108: Ramen Noodles, chicken | F108: 5 CAN | G108: 1CAN | H108: 24 | I108: 8 | J108: 1 | K108: 51.42857143 | L108: 24 | M108: 27.42857143 | N108: 1.866666667 | O108: 0.9333333333 | P108: 0.6253333333 | Q108: 0.4666666667
B109: 85 | C109: PASTA | D109: DINNER | E109: STICKY RICE | F109: 5LBS | G109: 1CUP | H109: 17 | I109: 60 | J109: 2 | K109: 13.71428571 | L109: 17 | M109: -3.285714286 | N109: 4.958333333 | O109: 2.479166667 | P109: 1.661041667 | Q109: 1.239583333
B110: 86 | C110: PASTA | D110: DINNER | E110: Spaghetti and Macaroni | F110: 11 CAN | G110: 1CAN | H110: 23 | I110: 24 | J110: 2 | K110: 34.28571429 | L110: 23 | M110: 11.28571429 | N110: 2.683333333 | O110: 1.341666667 | P110: 0.8989166667 | Q110: 0.6708333333
B111: 87 | C111: PASTA | D111: DINNER | E111: Spaghetti w/ sauce, canned | F111: PACK | G111: 1/2PK | H111: 20 | I111: 24 | J111: 2 | K111: 34.28571429 | L111: 20 | M111: 14.28571429 | N111: 2.333333333 | O111: 1.166666667 | P111: 0.7816666667 | Q111: 0.5833333333
B112: 88 | C112: PASTA | D112: DINNER | E112: Rice, wild | F112: PACK | G112: 1/2PK | H112: 43 | I112: 20 | J112: 2 | K112: 41.14285714 | L112: 43 | M112: -1.857142857 | N112: 4.180555556 | O112: 2.090277778 | P112: 1.400486111 | Q112: 1.045138889
B113: 89 | H113: 0 | I113: 0 | J113: 0 | K113: 0 | L113: 0 | M113: 0 | N113: 0 | O113: 0 | P113: 0 | Q113: 0
B114: 90 | H114: 0 | I114: 0 | J114: 0 | K114: 0 | L114: 0 | M114: 0 | N114: 0 | O114: 0 | P114: 0 | Q114: 0
B115: 91 | H115: 0 | I115: 0 | J115: 0 | K115: 0 | L115: 0 | M115: 0 | N115: 0 | O115: 0 | P115: 0 | Q115: 0
B116: 92 | H116: 0 | I116: 0 | J116: 0 | K116: 0 | L116: 0 | M116: 0 | N116: 0 | O116: 0 | P116: 0 | Q116: 0
B117: 93 | H117: 0 | I117: 0 | J117: 0 | K117: 0 | L117: 0 | M117: 0 | N117: 0 | O117: 0 | P117: 0 | Q117: 0
B118: 94 | H118: 0 | I118: 0 | J118: 0 | K118: 0 | L118: 0 | M118: 0 | N118: 0 | O118: 0 | P118: 0 | Q118: 0
B119: 95 | C119: PASTA | E119: TOTAL | H119: =SUBTOTAL(109,H105:H118) -> 241 | J119: =SUBTOTAL(109,J105:J118) -> 15 | K119: =SUM(K105:K118)*1.0001 -> 413.5270629 | L119: =SUM(L105:L118)*1.0001 -> 241.0241 | M119: =SUBTOTAL(109,M105:M118) -> 172.4857143 | N119: 2.331398563 | O119: 1.165699281 | P119: 0.7810185185 | Q119: 0.5828496407
B120: 96
B121: 97 | C121: PROTIEN | D121: DINNER | E121: JERKEY | F121: 2 CAN | G121: 5 | H121: 16 | I121: 40 | J121: 4 | K121: =IFERROR((J121/I121)/7,0)*(SUMPRODUCT($N$21*30))*$J$21 -> 41.14285714 | L121: =IFERROR(H121,0) -> 16 | M121: =IFERROR(K121-L121,0) -> 25.14285714 | N121: =IFERROR(L121/K121,0)*4 -> 1.555555556 | O121: =IFERROR(L121/K121,0)*2 -> 0.7777777778 | P121: =IFERROR(L121/K121,0)*1.34 -> 0.5211111111 | Q121: =IFERROR(L121/K121,0) -> 0.3888888889 | S121: Required servings for one adult per week | X121: 9
B122: 98 | C122: PROTIEN | D122: DINNER | E122: CANNED HAM | F122: 3 CAN | G122: 1CAN | H122: 22 | I122: 8 | J122: 0.5 | K122: =IFERROR((J122/I122)/7,0)*(SUMPRODUCT($N$21*30))*$J$21 -> 25.71428571 | L122: =IFERROR(H122,0) -> 22 | M122: =IFERROR(K122-L122,0) -> 3.714285714 | N122: 3.422222222 | O122: 1.711111111 | P122: 1.146444444 | Q122: 0.8555555556 | S122: Total servings to meet plans goal | X122: =IFERROR($J$21*$N$21,0)*X121 -> 864
B123: 99 | C123: PROTIEN | D123: DINNER | E123: CANNED TUNA | F123: 4 CAN | G123: 1CAN | H123: 201 | I123: 2 | J123: 1 | K123: 205.7142857 | L123: 201 | M123: 4.714285714 | N123: 3.908333333 | O123: 1.954166667 | P123: 1.309291667 | Q123: 0.9770833333
B124: 100 | C124: PROTIEN | D124: DINNER | E124: CANNED CHICKEN | F124: 5 CAN | G124: 1CAN | H124: 36 | I124: 12 | J124: 1 | K124: 34.28571429 | L124: 36 | M124: -1.714285714 | N124: 4.2 | O124: 2.1 | P124: 1.407 | Q124: 1.05
B125: 101 | C125: PROTIEN | D125: DINNER | E125: CANNED BEEF | F125: 9 CAN | G125: 1CAN | H125: 3 | I125: 12 | J125: 0.5 | K125: 17.14285714 | L125: 3 | M125: 14.14285714 | N125: 0.7 | O125: 0.35 | P125: 0.2345 | Q125: 0.175
B126: 102 | C126: PROTIEN | D126: DINNER | E126: SPAM | F126: 11 CAN | G126: 1CAN | H126: 34 | I126: 6 | J126: 0.5 | K126: 34.28571429 | L126: 34 | M126: 0.2857142857 | N126: 3.966666667 | O126: 1.983333333 | P126: 1.328833333 | Q126: 0.9916666667
B127: 103 | C127: PROTIEN | D127: DINNER | E127: DEHYDRAED EGGS | F127: pack | G127: serving | H127: 175 | I127: 1 | J127: 1 | K127: 411.4285714 | L127: 175 | M127: 236.4285714 | N127: 1.701388889 | O127: 0.8506944444 | P127: 0.5699652778 | Q127: 0.4253472222
B128: 104 | C128: PROTIEN | D128: DAILY | E128: EGG BEATERS | F128: pack | G128: serving | H128: 15 | I128: 6 | J128: 0.25 | K128: 17.14285714 | L128: 15 | M128: 2.142857143 | N128: 3.5 | O128: 1.75 | P128: 1.1725 | Q128: 0.875
B129: 105 | H129: 0 | I129: 0 | J129: 0 | K129: 0 | L129: 0 | M129: 0 | N129: 0 | O129: 0 | P129: 0 | Q129: 0
B130: 106 | H130: 0 | I130: 0 | J130: 0 | K130: 0 | L130: 0 | M130: 0 | N130: 0 | O130: 0 | P130: 0 | Q130: 0
B131: 107 | H131: 0 | I131: 0 | J131: 0 | K131: 0 | L131: 0 | M131: 0 | N131: 0 | O131: 0 | P131: 0 | Q131: 0
B132: 108 | H132: 0 | I132: 0 | J132: 0 | K132: 0 | L132: 0 | M132: 0 | N132: 0 | O132: 0 | P132: 0 | Q132: 0
B133: 109 | H133: 0 | I133: 0 | J133: 0 | K133: 0 | L133: 0 | M133: 0 | N133: 0 | O133: 0 | P133: 0 | Q133: 0
B134: 110 | H134: 0 | I134: 0 | J134: 0 | K134: 0 | L134: 0 | M134: 0 | N134: 0 | O134: 0 | P134: 0 | Q134: 0
B135: 111 | C135: PROTIEN | E135: TOTAL | H135: =SUBTOTAL(109,H121:H134) -> 502 | J135: =SUBTOTAL(109,J121:J134) -> 8.75 | K135: =SUM(K121:K134)*1.0001 -> 786.9358286 | L135: =SUM(L121:L134)*1.0001 -> 502.0502 | M135: =SUBTOTAL(109,M121:M134) -> 284.8571429 | N135: 2.551924473 | O135: 1.275962237 | P135: 0.8548946986 | Q135: 0.6379811184
B136: 112 | J136: 0
B137: 113 | C137: SUGARS | D137: BAKING | E137: SUGAR | F137: 5LBS | G137: 1 | H137: 3 | I137: 400 | J137: 6 | K137: =IFERROR((J137/I137)/7,0)*(SUMPRODUCT($N$21*30))*$J$21 -> 6.171428571 | L137: =IFERROR(H137,0) -> 3 | M137: =IFERROR(K137-L137,0) -> 3.171428571 | N137: =IFERROR(L137/K137,0)*4 -> 1.944444444 | O137: =IFERROR(L137/K137,0)*2 -> 0.9722222222 | P137: =IFERROR(L137/K137,0)*1.34 -> 0.6513888889 | Q137: =IFERROR(L137/K137,0) -> 0.4861111111 | S137: Required servings for one adult per week | X137: 11
B138: 114 | C138: SUGARS | D138: COFFEE | E138: HONEY | F138: 5LBS | G138: 1CAN | H138: 6 | I138: 200 | J138: 7 | K138: =IFERROR((J138/I138)/7,0)*(SUMPRODUCT($N$21*30))*$J$21 -> 14.4 | L138: =IFERROR(H138,0) -> 6 | M138: =IFERROR(K138-L138,0) -> 8.4 | N138: 1.666666667 | O138: 0.8333333333 | P138: 0.5583333333 | Q138: 0.4166666667 | S138: Total servings to meet plans goal | X138: =IFERROR($J$21*$N$21,0)*X137 -> 1056
B139: 115 | C139: SUGARS | D139: DINNER | E139: BROWN SUGAR | F139: 4 CAN | G139: 1CAN | H139: 16 | I139: 60 | J139: 1 | K139: 6.857142857 | L139: 16 | M139: -9.142857143 | N139: 9.333333333 | O139: 4.666666667 | P139: 3.126666667 | Q139: 2.333333333
B140: 116 | C140: SUGARS | D140: DINNER | E140: MAPLE SYRUP | F140: 5 CAN | G140: 1CAN | H140: 14 | I140: 32 | J140: 2 | K140: 25.71428571 | L140: 14 | M140: 11.71428571 | N140: 2.177777778 | O140: 1.088888889 | P140: 0.7295555556 | Q140: 0.5444444444
B141: 117 | C141: SUGARS | D141: DINNER | E141: SUGAR LT BRN | F141: 1LB | G141: 1CUP | H141: 7 | I141: 60 | J141: 1 | K141: 6.857142857 | L141: 7 | M141: -0.1428571429 | N141: 4.083333333 | O141: 2.041666667 | P141: 1.367916667 | Q141: 1.020833333
B142: 118 | H142: 0 | I142: 0 | J142: 0 | K142: 0 | L142: 0 | M142: 0 | N142: 0 | O142: 0 | P142: 0 | Q142: 0
B143: 119 | H143: 0 | I143: 0 | J143: 0 | K143: 0 | L143: 0 | M143: 0 | N143: 0 | O143: 0 | P143: 0 | Q143: 0
B144: 120 | H144: 0 | I144: 0 | J144: 0 | K144: 0 | L144: 0 | M144: 0 | N144: 0 | O144: 0 | P144: 0 | Q144: 0
B145: 121 | H145: 0 | I145: 0 | J145: 0 | K145: 0 | L145: 0 | M145: 0 | N145: 0 | O145: 0 | P145: 0 | Q145: 0
B146: 122 | H146: 0 | I146: 0 | J146: 0 | K146: 0 | L146: 0 | M146: 0 | N146: 0 | O146: 0 | P146: 0 | Q146: 0
B147: 123 | H147: 0 | I147: 0 | J147: 0 | K147: 0 | L147: 0 | M147: 0 | N147: 0 | O147: 0 | P147: 0 | Q147: 0
B148: 124 | H148: 0 | I148: 0 | J148: 0 | K148: 0 | L148: 0 | M148: 0 | N148: 0 | O148: 0 | P148: 0 | Q148: 0
B149: 125 | H149: 0 | I149: 0 | J149: 0 | K149: 0 | L149: 0 | M149: 0 | N149: 0 | O149: 0 | P149: 0 | Q149: 0
B150: 126 | H150: 0 | I150: 0 | J150: 0 | K150: 0 | L150: 0 | M150: 0 | N150: 0 | O150: 0 | P150: 0 | Q150: 0
B151: 127 | C151: SUGARS | E151: TOTAL | H151: =SUBTOTAL(109,H137:H150) -> 46 | J151: =SUBTOTAL(109,J137:J150) -> 17 | K151: =SUM(K137:K150)*1.0001 -> 60.006 | L151: =SUM(L137:L150)*1.0001 -> 46.0046 | M151: =SUBTOTAL(109,M137:M150) -> 14 | N151: 3.066666667 | O151: 1.533333333 | P151: 1.027333333 | Q151: 0.7666666667
B152: 128
B153: 129 | C153: SNACKS | D153: MISC | E153: PEANUT BUTTER | F153: 2 CAN | G153: 5 | H153: 18 | I153: 32 | J153: 4 | K153: =IFERROR((J153/I153)/7,0)*(SUMPRODUCT($N$21*30))*$J$21 -> 51.42857143 | L153: =IFERROR(H153,0) -> 18 | M153: =IFERROR(K153-L153,0) -> 33.42857143 | N153: =IFERROR(L153/K153,0)*4 -> 1.4 | O153: =IFERROR(L153/K153,0)*2 -> 0.7 | P153: =IFERROR(L153/K153,0)*1.34 -> 0.469 | Q153: =IFERROR(L153/K153,0) -> 0.35 | S153: Required servings for one adult per week | X153: 14
B154: 130 | C154: SNACKS | D154: MISC | E154: ALMONDS | F154: 3 CAN | G154: 1CAN | H154: 5 | I154: 22 | J154: 1 | K154: =IFERROR((J154/I154)/7,0)*(SUMPRODUCT($N$21*30))*$J$21 -> 18.7012987 | L154: =IFERROR(H154,0) -> 5 | M154: =IFERROR(K154-L154,0) -> 13.7012987 | N154: 1.069444444 | O154: 0.5347222222 | P154: 0.3582638889 | Q154: 0.2673611111 | S154: Total servings to meet plans goal | X154: =IFERROR($J$21*$N$21,0)*X153 -> 1344
B155: 131 | C155: SNACKS | D155: MISC | E155: SCOTT CHIPS | F155: 4 CAN | G155: 1CAN | H155: 56 | I155: 4 | J155: 1 | K155: 102.8571429 | L155: 56 | M155: 46.85714286 | N155: 2.177777778 | O155: 1.088888889 | P155: 0.7295555556 | Q155: 0.5444444444
B156: 132 | C156: SNACKS | D156: MISC | E156: JESSI CHIPS | F156: BAG | G156: 1/4 BAG | H156: 204 | I156: 4 | J156: 4 | K156: 411.4285714 | L156: 204 | M156: 207.4285714 | N156: 1.983333333 | O156: 0.9916666667 | P156: 0.6644166667 | Q156: 0.4958333333
B157: 133 | C157: SNACKS | D157: MISC | E157: SALSA | F157: 8JARS | G157: 1/8JAR | H157: 100 | I157: 8 | J157: 2 | K157: 102.8571429 | L157: 100 | M157: 2.857142857 | N157: 3.888888889 | O157: 1.944444444 | P157: 1.302777778 | Q157: 0.9722222222
B158: 134 | C158: SNACKS | D158: MISC | E158: CHEESE DIP | F158: CAN | G158: 2022-01-08 | H158: 105 | I158: 8 | J158: 2 | K158: 102.8571429 | L158: 105 | M158: -2.142857143 | N158: 4.083333333 | O158: 2.041666667 | P158: 1.367916667 | Q158: 1.020833333
B159: 135 | C159: SNACKS | D159: MISC | E159: OTHER DIP | F159: CAN | G159: 0.125 | H159: 80 | I159: 8 | J159: 2 | K159: 102.8571429 | L159: 80 | M159: 22.85714286 | N159: 3.111111111 | O159: 1.555555556 | P159: 1.042222222 | Q159: 0.7777777778
B160: 136 | C160: SNACKS | D160: MISC | E160: CHOCOLATE | F160: CAN | G160: 1BAR | H160: 34 | I160: 16 | J160: 2 | K160: 51.42857143 | L160: 34 | M160: 17.42857143 | N160: 2.644444444 | O160: 1.322222222 | P160: 0.8858888889 | Q160: 0.6611111111
B161: 137 | C161: SNACKS | D161: MISC | E161: WHITE CHOCOLATE | F161: PACK | G161: 1BAR | H161: 40 | I161: 16 | J161: 2 | K161: 51.42857143 | L161: 40 | M161: 11.42857143 | N161: 3.111111111 | O161: 1.555555556 | P161: 1.042222222 | Q161: 0.7777777778
B162: 138 | H162: 0 | I162: 0 | J162: 0 | K162: 0 | L162: 0 | M162: 0 | N162: 0 | O162: 0 | P162: 0 | Q162: 0
B163: 139 | H163: 0 | I163: 0 | J163: 0 | K163: 0 | L163: 0 | M163: 0 | N163: 0 | O163: 0 | P163: 0 | Q163: 0
B164: 140 | H164: 0 | I164: 0 | J164: 0 | K164: 0 | L164: 0 | M164: 0 | N164: 0 | O164: 0 | P164: 0 | Q164: 0
B165: 141 | H165: 0 | I165: 0 | J165: 0 | K165: 0 | L165: 0 | M165: 0 | N165: 0 | O165: 0 | P165: 0 | Q165: 0
B166: 142 | H166: 0 | I166: 0 | J166: 0 | K166: 0 | L166: 0 | M166: 0 | N166: 0 | O166: 0 | P166: 0 | Q166: 0
B167: 143 | C167: SNACKS | E167: TOTAL | H167: =SUBTOTAL(109,H153:H166) -> 642 | J167: =SUBTOTAL(109,J153:J166) -> 20 | K167: =SUM(K153:K166)*1.0001 -> 995.9437403 | L167: =SUM(L153:L166)*1.0001 -> 642.0642 | M167: =SUBTOTAL(109,M153:M166) -> 353.8441558 | N167: 2.578716745 | O167: 1.289358372 | P167: 0.8638701095 | Q167: 0.6446791862
B168: 144
B169: 145 | C169: CEREALS | D169: DAILY | E169: BREAKFAST BARS | F169: PACK | G169: BAR | H169: 39 | I169: 32 | J169: 1 | K169: =IFERROR((J169/I169)/7,0)*(SUMPRODUCT($N$21*30))*$J$21 -> 12.85714286 | L169: =IFERROR(H169,0) -> 39 | M169: =IFERROR(K169-L169,0) -> -26.14285714 | N169: =IFERROR(L169/K169,0)*4 -> 12.13333333 | O169: =IFERROR(L169/K169,0)*2 -> 6.066666667 | P169: =IFERROR(L169/K169,0)*1.34 -> 4.064666667 | Q169: =IFERROR(L169/K169,0) -> 3.033333333 | S169: Required servings for one adult per week | X169: 14
B170: 146 | C170: CEREALS | D170: DAILY | E170: CREAM OF WHEAT | F170: PACK | G170: 1/2CUP | H170: 34 | I170: 16 | J170: 1 | K170: =IFERROR((J170/I170)/7,0)*(SUMPRODUCT($N$21*30))*$J$21 -> 25.71428571 | L170: =IFERROR(H170,0) -> 34 | M170: =IFERROR(K170-L170,0) -> -8.285714286 | N170: 5.288888889 | O170: 2.644444444 | P170: 1.771777778 | Q170: 1.322222222 | S170: Total servings to meet plans goal | X170: =IFERROR($J$21*$N$21,0)*X169 -> 1344
B171: 147 | C171: CEREALS | D171: DAILY | E171: OATS ROLLED | F171: PACK | G171: 1/2 CUP | H171: 36 | I171: 16 | J171: 1 | K171: 25.71428571 | L171: 36 | M171: -10.28571429 | N171: 5.6 | O171: 2.8 | P171: 1.876 | Q171: 1.4
B172: 148 | C172: CEREALS | D172: DAILY | E172: JESSI CEREAL | F172: PACK | G172: 2CUPS | H172: 76 | I172: 12 | J172: 2 | K172: 68.57142857 | L172: 76 | M172: -7.428571429 | N172: 4.433333333 | O172: 2.216666667 | P172: 1.485166667 | Q172: 1.108333333
B173: 149 | C173: CEREALS | D173: DAILY | E173: DADS CEREAL | F173: PACK | G173: 2cups | H173: 57 | I173: 12 | J173: 2 | K173: 68.57142857 | L173: 57 | M173: 11.57142857 | N173: 3.325 | O173: 1.6625 | P173: 1.113875 | Q173: 0.83125
B174: 150 | H174: 0 | I174: 0 | J174: 0 | K174: 0 | L174: 0 | M174: 0 | N174: 0 | O174: 0 | P174: 0 | Q174: 0
B175: 151 | H175: 0 | I175: 0 | J175: 0 | K175: 0 | L175: 0 | M175: 0 | N175: 0 | O175: 0 | P175: 0 | Q175: 0
B176: 152 | H176: 0 | I176: 0 | J176: 0 | K176: 0 | L176: 0 | M176: 0 | N176: 0 | O176: 0 | P176: 0 | Q176: 0
B177: 153 | H177: 0 | I177: 0 | J177: 0 | K177: 0 | L177: 0 | M177: 0 | N177: 0 | O177: 0 | P177: 0 | Q177: 0
B178: 154 | H178: 0 | I178: 0 | J178: 0 | K178: 0 | L178: 0 | M178: 0 | N178: 0 | O178: 0 | P178: 0 | Q178: 0
B179: 155 | H179: 0 | I179: 0 | J179: 0 | K179: 0 | L179: 0 | M179: 0 | N179: 0 | O179: 0 | P179: 0 | Q179: 0
B180: 156 | H180: 0 | I180: 0 | J180: 0 | K180: 0 | L180: 0 | M180: 0 | N180: 0 | O180: 0 | P180: 0 | Q180: 0
B181: 157 | H181: 0 | I181: 0 | J181: 0 | K181: 0 | L181: 0 | M181: 0 | N181: 0 | O181: 0 | P181: 0 | Q181: 0
B182: 158 | H182: 0 | I182: 0 | J182: 0 | K182: 0 | L182: 0 | M182: 0 | N182: 0 | O182: 0 | P182: 0 | Q182: 0
B183: 159 | C183: CEREALS | E183: TOTAL | H183: =SUBTOTAL(109,H169:H182) -> 242 | J183: =SUBTOTAL(109,J169:J182) -> 7 | K183: =SUM(K169:K182)*1.0001 -> 201.4487143 | L183: =SUM(L169:L182)*1.0001 -> 242.0242 | M183: =SUBTOTAL(109,M169:M182) -> -40.57142857 | N183: 4.805673759 | O183: 2.402836879 | P183: 1.609900709 | Q183: 1.20141844
B184: 160
B185: 161 | C185: SOUP | D185: DINNER | E185: SINGLE SERVE DRY | F185: 24CANS | G185: 1CAN | H185: 23 | I185: 20 | J185: 0.5 | K185: =IFERROR((J185/I185)/7,0)*(SUMPRODUCT($N$21*30))*$J$21 -> 10.28571429 | L185: =IFERROR(H185,0) -> 23 | M185: =IFERROR(K185-L185,0) -> -12.71428571 | N185: =IFERROR(L185/K185,0)*4 -> 8.944444444 | O185: =IFERROR(L185/K185,0)*2 -> 4.472222222 | P185: =IFERROR(L185/K185,0)*1.34 -> 2.996388889 | Q185: =IFERROR(L185/K185,0) -> 2.236111111 | S185: Required servings for one adult per week | X185: 4
B186: 162 | C186: SOUP | D186: DINNER | E186: BEEF BROTH | F186: 24CANS | G186: 1CAN | H186: 4 | I186: 60 | J186: 0.5 | K186: =IFERROR((J186/I186)/7,0)*(SUMPRODUCT($N$21*30))*$J$21 -> 3.428571429 | L186: =IFERROR(H186,0) -> 4 | M186: =IFERROR(K186-L186,0) -> -0.5714285714 | N186: 4.666666667 | O186: 2.333333333 | P186: 1.563333333 | Q186: 1.166666667 | S186: Total servings to meet plans goal | X186: =IFERROR($J$21*$N$21,0)*X185 -> 384
B187: 163 | C187: SOUP | D187: DINNER | E187: CHICKEN BROTH | F187: 24CANS | G187: 1CAN | H187: 1 | I187: 40 | J187: 0.5 | K187: 5.142857143 | L187: 1 | M187: 4.142857143 | N187: 0.7777777778 | O187: 0.3888888889 | P187: 0.2605555556 | Q187: 0.1944444444
B188: 164 | C188: SOUP | D188: DINNER | E188: CHICKEN SOUP | F188: 24CANS | G188: 1CAN | H188: 2 | I188: 24 | J188: 0.5 | K188: 8.571428571 | L188: 2 | M188: 6.571428571 | N188: 0.9333333333 | O188: 0.4666666667 | P188: 0.3126666667 | Q188: 0.2333333333
B189: 165 | C189: SOUP | D189: DINNER | E189: VEG SOUP | F189: 24CANS | G189: 1CAN | H189: 3 | I189: 24 | J189: 0.5 | K189: 8.571428571 | L189: 3 | M189: 5.571428571 | N189: 1.4 | O189: 0.7 | P189: 0.469 | Q189: 0.35
B190: 166 | C190: SOUP | D190: DINNER | E190: BEEF STEW | F190: 24CANS | G190: 1CAN | H190: 16 | I190: 4 | J190: 0.5 | K190: 51.42857143 | L190: 16 | M190: 35.42857143 | N190: 1.244444444 | O190: 0.6222222222 | P190: 0.4168888889 | Q190: 0.3111111111
B191: 167 | C191: SOUP | D191: DINNER | E191: RAVIOLI | F191: 24CANS | G191: 1CAN | H191: 3 | I191: 16 | J191: 0.5 | K191: 12.85714286 | L191: 3 | M191: 9.857142857 | N191: 0.9333333333 | O191: 0.4666666667 | P191: 0.3126666667 | Q191: 0.2333333333
B192: 168 | C192: SOUP | D192: DINNER | E192: CANNED SPAGHETTI | F192: 24CANS | G192: 1CAN | H192: 14 | I192: 8 | J192: 0.5 | K192: 25.71428571 | L192: 14 | M192: 11.71428571 | N192: 2.177777778 | O192: 1.088888889 | P192: 0.7295555556 | Q192: 0.5444444444
B193: 169 | C193: SOUP | D193: DINNER | E193: OTHER | F193: 24CANS | G193: 1CAN | H193: 0 | I193: 0 | J193: 0 | K193: 0 | L193: 0 | M193: 0 | N193: 0 | O193: 0 | P193: 0 | Q193: 0
B194: 170 | H194: 0 | I194: 0 | J194: 0 | K194: 0 | L194: 0 | M194: 0 | N194: 0 | O194: 0 | P194: 0 | Q194: 0
B195: 171 | H195: 0 | I195: 0 | J195: 0 | K195: 0 | L195: 0 | M195: 0 | N195: 0 | O195: 0 | P195: 0 | Q195: 0
B196: 172 | H196: 0 | I196: 0 | J196: 0 | K196: 0 | L196: 0 | M196: 0 | N196: 0 | O196: 0 | P196: 0 | Q196: 0
B197: 173 | H197: 0 | I197: 0 | J197: 0 | K197: 0 | L197: 0 | M197: 0 | N197: 0 | O197: 0 | P197: 0 | Q197: 0
B198: 174 | H198: 0 | I198: 0 | J198: 0 | K198: 0 | L198: 0 | M198: 0 | N198: 0 | O198: 0 | P198: 0 | Q198: 0
B199: 175 | C199: SOUP | E199: TOTAL | H199: =SUBTOTAL(109,H185:H196) -> 66 | J199: =SUBTOTAL(109,J185:J196) -> 4 | K199: =SUM(K185:K196)*1.0001 -> 126.0126 | L199: =SUM(L185:L196)*1.0001 -> 66.0066 | M199: =SUBTOTAL(109,M185:M196) -> 60 | N199: 2.095238095 | O199: 1.047619048 | P199: 0.7019047619 | Q199: 0.5238095238
B200: 176
B201: 177 | C201: VEGGIE | D201: DINNER | E201: MUSHROOMS | F201: BAG | G201: 5 | H201: 8 | I201: 20 | J201: 1 | K201: =IFERROR((J201/I201)/7,0)*(SUMPRODUCT($N$21*30))*$J$21 -> 20.57142857 | L201: =IFERROR(H201,0) -> 8 | M201: =IFERROR(K201-L201,0) -> 12.57142857 | N201: =IFERROR(L201/K201,0)*4 -> 1.555555556 | O201: =IFERROR(L201/K201,0)*2 -> 0.7777777778 | P201: =IFERROR(L201/K201,0)*1.34 -> 0.5211111111 | Q201: =IFERROR(L201/K201,0) -> 0.3888888889 | S201: Required servings for one adult per week | X201: 10
B202: 178 | C202: VEGGIE | D202: DINNER | E202: INSTANT POTATO | F202: BAG | G202: 1CAN | H202: 4 | I202: 60 | J202: 2 | K202: =IFERROR((J202/I202)/7,0)*(SUMPRODUCT($N$21*30))*$J$21 -> 13.71428571 | L202: =IFERROR(H202,0) -> 4 | M202: =IFERROR(K202-L202,0) -> 9.714285714 | N202: 1.166666667 | O202: 0.5833333333 | P202: 0.3908333333 | Q202: 0.2916666667 | S202: Total servings to meet plans goal | X202: =IFERROR($J$21*$N$21,0)*X201 -> 960
B203: 179 | C203: VEGGIE | D203: DINNER | E203: CANNED POTATO | F203: CAN | G203: 1CAN | H203: 4 | I203: 40 | J203: 0.5 | K203: 5.142857143 | L203: 4 | M203: 1.142857143 | N203: 3.111111111 | O203: 1.555555556 | P203: 1.042222222 | Q203: 0.7777777778
B204: 180 | C204: VEGGIE | D204: DINNER | E204: GREEN BEANS | F204: 5 CAN | G204: 1CAN | H204: 2 | I204: 24 | J204: 0.5 | K204: 8.571428571 | L204: 2 | M204: 6.571428571 | N204: 0.9333333333 | O204: 0.4666666667 | P204: 0.3126666667 | Q204: 0.2333333333
B205: 167 | C205: VEGGIE | D205: DINNER | E205: CORN | F205: 6 CAN | G205: 1CAN | H205: 3 | I205: 24 | J205: 0.5 | K205: 8.571428571 | L205: 3 | M205: 5.571428571 | N205: 1.4 | O205: 0.7 | P205: 0.469 | Q205: 0.35
B206: 168 | C206: VEGGIE | D206: DINNER | E206: PEAS | F206: 7 CAN | G206: 1CAN | H206: 16 | I206: 4 | J206: 0.5 | K206: 51.42857143 | L206: 16 | M206: 35.42857143 | N206: 1.244444444 | O206: 0.6222222222 | P206: 0.4168888889 | Q206: 0.3111111111
B207: 183 | C207: VEGGIE | D207: DINNER | E207: BAKED BEANS | F207: 8 CAN | G207: serving | H207: 32 | I207: 16 | J207: 1 | K207: 25.71428571 | L207: 32 | M207: -6.285714286 | N207: 4.977777778 | O207: 2.488888889 | P207: 1.667555556 | Q207: 1.244444444
B208: 184 | C208: VEGGIE | D208: DINNER | E208: GARLIC FRESH | F208: BAG | G208: serving | H208: 16 | I208: 14 | J208: 4 | K208: 117.5510204 | L208: 16 | M208: 101.5510204 | N208: 0.5444444444 | O208: 0.2722222222 | P208: 0.1823888889 | Q208: 0.1361111111
B209: 185 | C209: VEGGIE | D209: DINNER | E209: POTATO FRESH | F209: 5LBS | G209: serving | H209: 14 | I209: 8 | J209: 2 | K209: 102.8571429 | L209: 14 | M209: 88.85714286 | N209: 0.5444444444 | O209: 0.2722222222 | P209: 0.1823888889 | Q209: 0.1361111111
B210: 186 | H210: 0 | I210: 0 | J210: 0 | K210: 0 | L210: 0 | M210: 0 | N210: 0 | O210: 0 | P210: 0 | Q210: 0
B211: 187 | H211: 0 | I211: 0 | J211: 0 | K211: 0 | L211: 0 | M211: 0 | N211: 0 | O211: 0 | P211: 0 | Q211: 0
B212: 188 | H212: 0 | I212: 0 | J212: 0 | K212: 0 | L212: 0 | M212: 0 | N212: 0 | O212: 0 | P212: 0 | Q212: 0
B213: 189 | H213: 0 | I213: 0 | J213: 0 | K213: 0 | L213: 0 | M213: 0 | N213: 0 | O213: 0 | P213: 0 | Q213: 0
... 36 more rows

Sheet PIVOT TEMPLATE
B2: HEADER
B3: Row Labels | C3: Sum of QUOTA | D3: Sum of STORED
B4: SNACKS | C4: 1991.787896 | D4: 1284
B5: FRUIT | C5: 1800.09 | D5: 732
B6: PROTIEN | C6: 1573.792971 | D6: 1004
B7: BEVERAGES | C7: 1477.216714 | D7: 706
B8: PASTA | C8: 827.0127771 | D8: 482
B9: BREAD | C9: 754.3234286 | D9: 504
B10: VEGGIE | C10: 708.2803102 | D10: 198
B11: HOME GOODS | C11: 459.4515429 | D11: 292
B12: DAIRY | C12: 430.6501029 | D12: 218
B13: CEREALS | C13: 402.8772857 | D13: 484
B14: CONDIMENTS | C14: 257.2536784 | D14: 260
B15: SOUP | C15: 252.0126 | D15: 132
B16: SUGARS | C16: 120.006 | D16: 92
B17: Grand Total | C17: 11054.75531 | D17: 6388
H18: PIVOT CHARTS ON DATA TAB ARE COPIED FROM HERE. DATA TAB AND PIVOT TAB ARE COPIED TO TEMPLATES. DO NOT EDIT TEMPLATES. IN CASE OF CORRUPTED FILE, DELETE DATA OR PIVOT TAB AND COPY TEMPLATE TO NEW TAB AND REMOVE "TEMPLATE" FROM THE TAB TITLE.
B25: Row Labels | C25: Sum of QUOTA | D25: Sum of STORED
B26: DINNER | C26: 1895.608163 | D26: 1060
B27: MISC | C27: 995.8441558 | D27: 642
B28: SNACKS | C28: 917.1428571 | D28: 390
B29: General | C29: 738.5714286 | D29: 353
B30: DAILY | C30: 347.1918367 | D30: 387
B31: BAKING | C31: 292.6285714 | D31: 193
B32: Grooming | C32: 216 | D32: 134
B33: COFFEE | C33: 110.4 | D33: 23
B34: Household | C34: 13.71428571 | D34: 12
B35: Grand Total | C35: 5527.101299 | D35: 3194
B48: CATERGORY | C48: BEVERAGES
B50: Row Labels | C50: Sum of QUOTA | D50: Sum of STORED
B51: TOTAL | C51: 738.6452857 | D51: 353
B52: GATORAID PUNCH | C52: 154.2857143 | D52: 78
B53: GATORAID ORANGE | C53: 154.2857143 | D53: 104
B54: GATORAID PURPLE | C54: 154.2857143 | D54: 60
B55: MUSCLE MILK STRAW | C55: 64.28571429 | D55: 24
B56: WATER (FRESH) | C56: 57.14285714 | D56: 24
B57: SODA GINGER | C57: 51.42857143 | D57: 17
B58: GATORAID FROST | C58: 51.42857143 | D58: 16
B59: MJSCLE MILK CHOC | C59: 25.71428571 | D59: 20
B60: MUSCLE MILK | C60: 25.71428571 | D60: 10
B61: Grand Total | C61: 1477.216714 | D61: 706
B65: CATERGORY | C65: BREAD
B67: Row Labels | C67: Sum of QUOTA | D67: Sum of STORED
B68: TOTAL | C68: 377.1805714 | D68: 252
B69: STICKY RICE | C69: 154.2857143 | D69: 90
B70: BREAD MIX | C70: 102.8571429 | D70: 40
B71: FLOUR | C71: 51.42857143 | D71: 50
B72: RICE FLOWER | C72: 38.57142857 | D72: 40
B73: POP CORN KERNELS | C73: 17.14285714 | D73: 24
B74: YEAST PACKETS | C74: 12.85714286 | D74: 8
B75: Grand Total | C75: 754.3234286 | D75: 504
B80: CATERGORY | C80: CONDIMENTS
B82: Row Labels | C82: Sum of QUOTA | D82: Sum of STORED
B83: TOTAL | C83: 128.6332702 | D83: 130
B84: SALT IODIZED | C84: 28.8 | D84: 24
B85: BLUE CHEESE DRES | C85: 25.71428571 | D85: 35
B86: MAYONAISE | C86: 25.71428571 | D86: 30
B87: KETSUP | C87: 24.68571429 | D87: 20
B88: RELISH | C88: 19.59183673 | D88: 16
B89: MUSTARD | C89: 4.114285714 | D89: 5
B90: Grand Total | C90: 257.2536784 | D90: 260
B100: CATERGORY | C100: DAIRY
B102: Row Labels | C102: Sum of QUOTA | D102: Sum of STORED
B103: TOTAL | C103: 215.3358171 | D103: 109
B104: BUTTER PECAN SYRUP | C104: 96 | D104: 17
B105: CONDENSED MILK | C105: 68.57142857 | D105: 48
B106: SWEET CONDENSED | C106: 34.28571429 | D106: 34
B107: MILK POWDER | C107: 16.45714286 | D107: 10
B108: Grand Total | C108: 430.6501029 | D108: 218
B119: CATERGORY | C119: HOME GOODS
B121: Row Labels | C121: Sum of QUOTA | D121: Sum of STORED
B122: TOTAL | C122: 229.7372571 | D122: 146
B123: TOOTH PASTE | C123: 72 | D123: 49
B124: SOAP BARS | C124: 68.57142857 | D124: 19
B125: RAZOR SHAVE | C125: 25.71428571 | D125: 19
B126: TOILET PAPER | C126: 25.71428571 | D126: 27
B127: SHAMPOO | C127: 17.14285714 | D127: 14
B128: DISHWASHER LIQ | C128: 13.71428571 | D128: 12
B129: LAUNDRY DET | C129: 6.857142857 | D129: 6
B130: Grand Total | C130: 459.4515429 | D130: 292
B138: CATERGORY | C138: PASTA
B140: Row Labels | C140: Sum of QUOTA | D140: Sum of STORED
B141: TOTAL | C141: 413.5270629 | D141: 241
B142: PASTA | C142: 102.8571429 | D142: 86
B143: Ramen Noodles, beef | C143: 102.8571429 | D143: 14
B144: Ramen Noodles, chicken | C144: 51.42857143 | D144: 24
B145: Rice, wild | C145: 41.14285714 | D145: 43
B146: Spaghetti and Macaroni | C146: 34.28571429 | D146: 23
B147: Spaghetti w/ sauce, canned | C147: 34.28571429 | D147: 20
B148: PASTA SAUCE | C148: 32.91428571 | D148: 14
B149: STICKY RICE | C149: 13.71428571 | D149: 17
B150: Grand Total | C150: 827.0127771 | D150: 482
B159: CATERGORY | C159: SUGARS
B161: Row Labels | C161: Sum of QUOTA | D161: Sum of STORED
B162: TOTAL | C162: 60.006 | D162: 46
B163: MAPLE SYRUP | C163: 25.71428571 | D163: 14
B164: HONEY | C164: 14.4 | D164: 6
B165: SUGAR LT BRN | C165: 6.857142857 | D165: 7
B166: BROWN SUGAR | C166: 6.857142857 | D166: 16
B167: SUGAR | C167: 6.171428571 | D167: 3
B168: Grand Total | C168: 120.006 | D168: 92
B179: CATERGORY | C179: FRUIT
B181: Row Labels | C181: Sum of QUOTA | D181: Sum of STORED
B182: TOTAL | C182: 900.09 | D182: 366
B183: FRUIT JUICE | C183: 514.2857143 | D183: 167
B184: APPLE SLICES | C184: 102.8571429 | D184: 56
B185: MANDARIN ORANGES | C185: 102.8571429 | D185: 32
B186: BLUEBERRIES | C186: 51.42857143 | D186: 40
B187: CHERRIES | C187: 51.42857143 | D187: 30
B188: FRUIT SALAD | C188: 51.42857143 | D188: 17
B189: APPLESAUCE | C189: 25.71428571 | D189: 24
B190: PEACHES | C190: 0 | D190: 0
B191: STRAWBERRIES | C191: 0 | D191: 0
B192: PIE FILLING | C192: 0 | D192: 0
B193: PINEAPPLE | C193: 0 | D193: 0
B194: Grand Total | C194: 1800.09 | D194: 732
B203: CATERGORY | C203: PROTIEN
B205: Row Labels | C205: Sum of QUOTA | D205: Sum of STORED
B206: TOTAL | C206: 786.9358286 | D206: 502
B207: DEHYDRAED EGGS | C207: 411.4285714 | D207: 175
B208: CANNED TUNA | C208: 205.7142857 | D208: 201
B209: JERKEY | C209: 41.14285714 | D209: 16
B210: SPAM | C210: 34.28571429 | D210: 34
B211: CANNED CHICKEN | C211: 34.28571429 | D211: 36
B212: CANNED HAM | C212: 25.71428571 | D212: 22
B213: CANNED BEEF | C213: 17.14285714 | D213: 3
B214: EGG BEATERS | C214: 17.14285714 | D214: 15
B215: Grand Total | C215: 1573.792971 | D215: 1004
B227: CATERGORY | C227: SNACKS
B229: Row Labels | C229: Sum of QUOTA | D229: Sum of STORED
B230: TOTAL | C230: 995.9437403 | D230: 642
B231: JESSI CHIPS | C231: 411.4285714 | D231: 204
B232: CHEESE DIP | C232: 102.8571429 | D232: 105
B233: SCOTT CHIPS | C233: 102.8571429 | D233: 56
B234: SALSA | C234: 102.8571429 | D234: 100
B235: OTHER DIP | C235: 102.8571429 | D235: 80
B236: WHITE CHOCOLATE | C236: 51.42857143 | D236: 40
B237: PEANUT BUTTER | C237: 51.42857143 | D237: 18
B238: CHOCOLATE | C238: 51.42857143 | D238: 34
B239: ALMONDS | C239: 18.7012987 | D239: 5
B240: Grand Total | C240: 1991.787896 | D240: 1284
B247: CATERGORY | C247: CEREALS
B249: Row Labels | C249: Sum of QUOTA | D249: Sum of STORED
B250: TOTAL | C250: 201.4487143 | D250: 242
B251: DADS CEREAL | C251: 68.57142857 | D251: 57
B252: JESSI CEREAL | C252: 68.57142857 | D252: 76
B253: OATS ROLLED | C253: 25.71428571 | D253: 36
B254: CREAM OF WHEAT | C254: 25.71428571 | D254: 34
B255: BREAKFAST BARS | C255: 12.85714286 | D255: 39
B256: Grand Total | C256: 402.8772857 | D256: 484
B266: CATERGORY | C266: SOUP
B268: Row Labels | C268: Sum of QUOTA | D268: Sum of STORED
B269: TOTAL | C269: 126.0126 | D269: 66
B270: BEEF STEW | C270: 51.42857143 | D270: 16
B271: CANNED SPAGHETTI | C271: 25.71428571 | D271: 14
B272: RAVIOLI | C272: 12.85714286 | D272: 3
B273: SINGLE SERVE DRY | C273: 10.28571429 | D273: 23
B274: VEG SOUP | C274: 8.571428571 | D274: 3
B275: CHICKEN SOUP | C275: 8.571428571 | D275: 2
B276: CHICKEN BROTH | C276: 5.142857143 | D276: 1
B277: BEEF BROTH | C277: 3.428571429 | D277: 4
B278: OTHER | C278: 0 | D278: 0
B279: Grand Total | C279: 252.0126 | D279: 132
B287: CATERGORY | C287: VEGGIE
B289: Row Labels | C289: Sum of QUOTA | D289: Sum of STORED
B290: TOTAL | C290: 354.1578612 | D290: 99
B291: GARLIC FRESH | C291: 117.5510204 | D291: 16
B292: POTATO FRESH | C292: 102.8571429 | D292: 14
B293: PEAS | C293: 51.42857143 | D293: 16
B294: BAKED BEANS | C294: 25.71428571 | D294: 32
B295: MUSHROOMS | C295: 20.57142857 | D295: 8
B296: INSTANT POTATO | C296: 13.71428571 | D296: 4
B297: CORN | C297: 8.571428571 | D297: 3
B298: GREEN BEANS | C298: 8.571428571 | D298: 2
B299: CANNED POTATO | C299: 5.142857143 | D299: 4
B300: Grand Total | C300: 708.2803102 | D300: 198
B311: END

Sheet DP FOOD STORAGE
B1: Unit | C1: Target | D1: Quantity | E1: Amount | F1: Unit | H1: Minimum | I1: Expire | J1: Date | K1: Date to | L1: 1 Adult Share
A2: Item | B2: Measure | C2: Amount | D2: On Hand | E2: Needed | F2: Cost | G2: Extended | H2: Shelf Life* | I2: Date | J2: Bought | K2: Rotate | L2: Per Week
A4: BREAD, CEREAL, RICE and PASTA GROUP
A5: Wheat, Grain, Flour - Select 242 pounds, per adult serve, for 6 months
A6: Bread Mix | B6: lb | C6: =L6*$C$521*$B$524 -> 52 | D6: 0 | E6: =C6-D6 -> 52 | F6: 0 | G6: =D6*F6 -> 0 | H6: 2 yrs. w/o yeast | L6: 2
A7: Cornmeal/Polenta | B7: lb | C7: =L7*$C$521*$B$524 -> 39 | D7: 0 | E7: 39 | F7: 0 | G7: 0 | H7: 1 year | L7: 1.5
A8: Flour, White, enriched | B8: lb | C8: 45.994 | D8: 0 | E8: 45.994 | F8: 0 | G8: 0 | H8: 1 year | L8: 1.769
A9: Popcorn Kernels | B9: pkg | C9: 4.004 | D9: 0 | E9: 4.004 | F9: 0 | G9: 0 | H9: 2 years | L9: 0.154
A10: Tortillas, Corn | B10: pkg | C10: 2.002 | D10: 0 | E10: 2.002 | F10: 0 | G10: 0 | H10: 6 months | L10: 0.077
A11: Tortillas, Flour | B11: pkg | C11: 10.4 | D11: 0 | E11: 10.4 | F11: 0 | G11: 0 | H11: 6 months | L11: 0.4
A12: Wheat, raw, whole | B12: lb | C12: 78 | D12: 0 | E12: 78 | F12: 0 | G12: 0 | H12: 25 years | L12: 3
A13: Other | B13: lb | C13: 13 | D13: 0 | E13: 13 | F13: 0 | G13: 0 | L13: 0.5
A14: Other | B14: lb | C14: 13 | D14: 0 | E14: 13 | F14: 0 | G14: 0 | L14: 0.5
A16: Rice & Pasta - Select 40 pounds, per adult serve, for 6 months
A17: Ramen Noodles, beef | B17: serving | C17: =L17*$C$521*$B$524 -> 10.4 | D17: 0 | E17: =C17-D17 -> 10.4 | F17: 0 | G17: =D17*F17 -> 0 | H17: 2 years | L17: 0.4
A18: Ramen Noodles, chicken | B18: serving | C18: 10.4 | D18: 0 | E18: 10.4 | F18: 0 | G18: 0 | H18: 2 years | L18: 0.4
A19: Rice, brown | B19: lb | C19: 2.99 | D19: 0 | E19: 2.99 | F19: 0 | G19: 0 | H19: 1 year | L19: 0.115
A20: Rice, jasmine | B20: lb | C20: 4.004 | D20: 0 | E20: 4.004 | F20: 0 | G20: 0 | H20: 8 months | L20: 0.154
A21: Rice, white enriched | B21: lb | C21: 17.004 | D21: 0 | E21: 17.004 | F21: 0 | G21: 0 | H21: 2 years | L21: 0.654
A22: Rice, wild | B22: pkg | C22: 2.002 | D22: 0 | E22: 2.002 | F22: 0 | G22: 0 | H22: 8 months | L22: 0.077
A23: Spaghetti and Macaroni | B23: lb | C23: 10.4 | D23: 0 | E23: 10.4 | F23: 0 | G23: 0 | H23: 2 years | L23: 0.4
A24: Spaghetti w/ sauce, canned | B24: can | C24: 5.2 | D24: 0 | E24: 5.2 | F24: 0 | G24: 0 | H24: 2 years | L24: 0.2
A25: Other | B25: serving | C25: 0 | D25: 0 | E25: 0 | F25: 0 | G25: 0
A26: Other | B26: serving | C26: 0 | D26: 0 | E26: 0 | F26: 0 | G26: 0
A28: Cereals, Processed & Prepared - Select 37 pounds, per adult serve, for 6 months
A29: Breakfast Bars | B29: box | C29: =L29*$C$521*$B$524 -> 10.4 | D29: 0 | E29: =C29-D29 -> 10.4 | F29: 0 | G29: =D29*F29 -> 0 | H29: 6 months | L29: 0.4
A30: Cream of Wheat | B30: box | C30: 1.196 | D30: 0 | E30: 1.196 | F30: 0 | G30: 0 | H30: 1 year | L30: 0.046
A31: Mini-wheats | B31: box | C31: 1.196 | D31: 0 | E31: 1.196 | F31: 0 | G31: 0 | H31: 1 year | L31: 0.046
A32: Oats, rolled | B32: lb | C32: 15.6 | D32: 0 | E32: 15.6 | F32: 0 | G32: 0 | H32: 18 months | L32: 0.6
A33: Other | B33: box | C33: 0 | D33: 0 | E33: 0 | F33: 0 | G33: 0
A34: Other | B34: box | C34: 0 | D34: 0 | E34: 0 | F34: 0 | G34: 0
A36: MEAT, POULTRY, FISH, DRIED BEANS, EGGS and NUT GROUP
A37: Meats & Fish - Select 350 servings, per adult serve, for 6 months
A38: Anchovies | B38: jar | C38: =L38*$C$521*$B$524 -> 3.12 | D38: 0 | E38: =C38-D38 -> 3.12 | F38: 0 | G38: =D38*F38 -> 0 | H38: 1-2 years | L38: 0.12
A39: Beef, corned, canned | B39: can | C39: 1.976 | D39: 0 | E39: 1.976 | F39: 0 | G39: 0 | H39: 1-2 years | L39: 0.076
A40: Caviar | B40: jar | C40: 1.82 | D40: 0 | E40: 1.82 | F40: 0 | G40: 0 | H40: 1 year | L40: 0.07
A41: Chicken, canned, single serve | B41: can | C41: 26 | D41: 0 | E41: 26 | F41: 0 | G41: 0 | H41: 1-2 years | L41: 1
A42: Clams, canned | B42: can | C42: 2.002 | D42: 0 | E42: 2.002 | F42: 0 | G42: 0 | H42: 1-2 years | L42: 0.077
A43: Crab, canned | B43: can | C43: 10.4 | D43: 0 | E43: 10.4 | F43: 0 | G43: 0 | H43: 1-2 years | L43: 0.4
A44: Ham, canned, single serve | B44: can | C44: 26 | D44: 0 | E44: 26 | F44: 0 | G44: 0 | H44: 1-2 years | L44: 1
A45: Jerky | B45: lb | C45: 5.018 | D45: 0 | E45: 5.018 | F45: 0 | G45: 0 | H45: 6 months | L45: 0.193
A46: Leg Ham, canned, single serve | B46: can | C46: 18.2 | D46: 0 | E46: 18.2 | F46: 0 | G46: 0 | H46: 5 years | L46: 0.7
A47: Oysters, canned | B47: can | C47: 2.08 | D47: 0 | E47: 2.08 | F47: 0 | G47: 0 | H47: 1-2 years | L47: 0.08
A48: Salmon, canned, single serve | B48: can | C48: 5.2 | D48: 0 | E48: 5.2 | F48: 0 | G48: 0 | H48: 2-3 years | L48: 0.2
A49: Shrimp, canned, single serve | B49: can | C49: 26 | D49: 0 | E49: 26 | F49: 0 | G49: 0 | H49: 1-2 years | L49: 1
A50: Spam, serves 2 | B50: can | C50: 10.4 | D50: 0 | E50: 10.4 | F50: 0 | G50: 0 | H50: 5 years | L50: 0.4
A51: Tuna w/chili | B51: can | C51: 5.2 | D51: 0 | E51: 5.2 | F51: 0 | G51: 0 | H51: 1-2 years | L51: 0.2
A52: Tuna, serves 2 | B52: can | C52: 52 | D52: 0 | E52: 52 | F52: 0 | G52: 0 | H52: 1.5 years | L52: 2
A53: Turkey, canned, single serve | B53: can | C53: 26 | D53: 0 | E53: 26 | F53: 0 | G53: 0 | H53: 1-2 years | L53: 1
A54: TVP-Textured Vegetable Protein | B54: can | C54: =L54*$C$521*$B$524 -> 10.4 | D54: 0 | E54: =C54-D54 -> 10.4 | F54: 0 | G54: =D54*F54 -> 0 | H54: 2-3 years | L54: 0.4
A55: Other | B55: can | C55: =L55*$C$521*$B$524 -> 26 | D55: 0 | E55: =C55-D55 -> 26 | F55: 0 | G55: =D55*F55 -> 0 | L55: 1
A56: Other | B56: can | C56: =L56*$C$521*$B$524 -> 26 | D56: 0 | E56: =C56-D56 -> 26 | F56: 0 | G56: =D56*F56 -> 0 | L56: 1
A58: Legumes, Beans, Peas - Select 40 pounds, per adult serve, for 6 months
A59: Bean Dip | B59: can | C59: =L59*$C$521*$B$524 -> 1.04 | D59: 0 | E59: =C59-D59 -> 1.04 | F59: 0 | G59: =D59*F59 -> 0 | L59: 0.04
A60: Beans, Borlotti, dry | B60: lb | C60: 4.004 | D60: 0 | E60: 4.004 | F60: 0 | G60: 0 | H60: 1 year | L60: 0.154
A61: Beans, Chick Peas, dry | B61: lb | C61: 4.004 | D61: 0 | E61: 4.004 | F61: 0 | G61: 0 | H61: 1 year | L61: 0.154
A62: Beans, Kidney, dry | B62: lb | C62: 4.004 | D62: 0 | E62: 4.004 | F62: 0 | G62: 0 | H62: 1 year | L62: 0.154
A63: Beans, Pinto or Pink, dry | B63: lb | C63: 4.004 | D63: 0 | E63: 4.004 | F63: 0 | G63: 0 | H63: 1 year | L63: 0.154
A64: Beans, Mexe (Old El Paso) | B64: can | C64: 23.088 | D64: 0 | E64: 23.088 | F64: 0 | G64: 0 | H64: 2 years | L64: 0.888
A65: Beans, Refried (Old El Paso) | B65: can | C65: 4.004 | D65: 0 | E65: 4.004 | F65: 0 | G65: 0 | H65: 2 years | L65: 0.154
A66: Beans, 4-Bean Mix | B66: can | C66: 2.002 | D66: 0 | E66: 2.002 | F66: 0 | G66: 0 | H66: 2 years | L66: 0.077
A67: Lentils, dry | B67: lb | C67: 4.004 | D67: 0 | E67: 4.004 | F67: 0 | G67: 0 | H67: 1 year | L67: 0.154
A68: Other | B68: lb | C68: 4.004 | D68: 0 | E68: 4.004 | F68: 0 | G68: 0 | L68: 0.154
A69: Other | B69: lb | C69: 4.004 | D69: 0 | E69: 4.004 | F69: 0 | G69: 0 | L69: 0.154
A71: Nuts - Select 25 pounds minimum, per adult serve, for 6 months
A72: Peanut Butter | B72: pint | C72: =L72*$C$521*$B$524 -> 10.14 | D72: 0 | E72: =C72-D72 -> 10.14 | F72: 0 | G72: =D72*F72 -> 0 | H72: 9 months | L72: 0.39
A73: Pecans | B73: lb | C73: =L73*$C$521*$B$524 -> 5.018 | D73: 0 | E73: =C73-D73 -> 5.018 | F73: 0 | G73: =D73*F73 -> 0 | H73: 1 year | L73: 0.193
A74: Other | B74: lb | C74: =L74*$C$521*$B$524 -> 5.018 | D74: 0 | E74: =C74-D74 -> 5.018 | F74: 0 | G74: =D74*F74 -> 0 | L74: 0.193
A75: Other | B75: lb | C75: =L75*$C$521*$B$524 -> 5.018 | D75: 0 | E75: =C75-D75 -> 5.018 | F75: 0 | G75: =D75*F75 -> 0 | L75: 0.193
A77: Eggs - Select 12 dozen minimum, per adult serve, for 6 months
A78: Egg Replacer | B78: box of 60 "eggs" | C78: =L78*$C$521*$B$524 -> 2.08 | D78: 0 | E78: =C78-D78 -> 2.08 | F78: 0 | G78: =D78*F78 -> 0 | H78: 2 years | L78: 0.08
A79: Eggs, Dehydrated | B79: dozen | C79: =L79*$C$521*$B$524 -> 10.4 | D79: 0 | E79: =C79-D79 -> 10.4 | F79: 0 | G79: =D79*F79 -> 0 | L79: 0.4
A80: Other | C80: =L80*$C$521*$B$524 -> 0 | D80: 0 | E80: =C80-D80 -> 0 | F80: 0 | G80: =D80*F80 -> 0
A82: VEGETABLE GROUP
A83: Vegetables - Select 500 servings, per adult serve, for 6 months
A84: Artichoke Hearts | B84: can/jar | C84: =L84*$C$521*$B$524 -> 3.978 | D84: 0 | E84: =C84-D84 -> 3.978 | F84: 0 | G84: =D84*F84 -> 0 | H84: 3-4 years | L84: 0.153
A85: Asparagus | B85: can | C85: 9.984 | D85: 0 | E85: 9.984 | F85: 0 | G85: 0 | H85: 2 years | L85: 0.384
A86: Bamboo Shoots | B86: can | C86: 3.978 | D86: 0 | E86: 3.978 | F86: 0 | G86: 0 | H86: 3-4 years | L86: 0.153
A87: Bean, Green | B87: can | C87: 9.984 | D87: 0 | E87: 9.984 | F87: 0 | G87: 0 | H87: 2 years | L87: 0.384
A88: Beans, Corn, Peppers | B88: can | C88: 9.984 | D88: 0 | E88: 9.984 | F88: 0 | G88: 0 | H88: 2 years | L88: 0.384
A89: Beans Lima | B89: can | C89: 9.984 | D89: 0 | E89: 9.984 | F89: 0 | G89: 0 | H89: 4 years | L89: 0.384
A90: Beans, Wax | B90: can | C90: 9.984 | D90: 0 | E90: 9.984 | F90: 0 | G90: 0 | H90: 2 years | L90: 0.384
A91: Capers | B91: jar | C91: 3.978 | D91: 0 | E91: 3.978 | F91: 0 | G91: 0 | H91: 3-4 years | L91: 0.153
A92: Carrots | B92: can | C92: 9.984 | D92: 0 | E92: 9.984 | F92: 0 | G92: 0 | H92: 8 years | L92: 0.384
A93: Corn | B93: can | C93: 9.984 | D93: 0 | E93: 9.984 | F93: 0 | G93: 0 | H93: 2 years | L93: 0.384
A94: Corn, creamed | B94: can | C94: 5.018 | D94: 0 | E94: 5.018 | F94: 0 | G94: 0 | H94: 2 years | L94: 0.193
A95: Corn/Peas | B95: can | C95: 9.984 | D95: 0 | E95: 9.984 | F95: 0 | G95: 0 | H95: 2 years | L95: 0.384
A96: Enchilada Sauce | B96: jar | C96: 9.984 | D96: 0 | E96: 9.984 | F96: 0 | G96: 0 | H96: 2 years | L96: 0.384
A97: Fajita Sauce | B97: jar | C97: 9.984 | D97: 0 | E97: 9.984 | F97: 0 | G97: 0 | H97: 2 years | L97: 0.384
A98: Jalapenos, sliced | B98: jar | C98: 20.02 | D98: 0 | E98: 20.02 | F98: 0 | G98: 0 | H98: 2 years | L98: 0.77
A99: Mushrooms | B99: can | C99: 20.02 | D99: 0 | E99: 20.02 | F99: 0 | G99: 0 | H99: 3-4 years | L99: 0.77
A100: Onions, Cocktail | B100: jar | C100: 2.002 | D100: 0 | E100: 2.002 | F100: 0 | G100: 0 | H100: 2 years | L100: 0.077
A101: Peas | B101: can | C101: 20.02 | D101: 0 | E101: 20.02 | F101: 0 | G101: 0 | H101: 8 years | L101: 0.77
A102: Peas & Carrots | B102: can | C102: 9.984 | D102: 0 | E102: 9.984 | F102: 0 | G102: 0 | H102: 8 years | L102: 0.384
A103: Popcorn, unpopped | B103: pkg | C103: 5.018 | D103: 0 | E103: 5.018 | F103: 0 | G103: 0 | H103: 3 years | L103: 0.193
A104: Potatoes, flaked | B104: pkg 20-3/4 C serves | C104: 2.002 | D104: 0 | E104: 2.002 | F104: 0 | G104: 0 | H104: 2 years | L104: 0.077
A105: Pumpkin | B105: can | C105: 5.018 | D105: 0 | E105: 5.018 | F105: 0 | G105: 0 | H105: 4 years | L105: 0.193
A106: Salsa, Chunky | B106: jar | C106: 9.984 | D106: 0 | E106: 9.984 | F106: 0 | G106: 0 | H106: 2 years | L106: 0.384
A107: Spaghetti Sauce | B107: bottles | C107: =L107*$C$521*$B$524 -> 20.02 | D107: 0 | E107: =C107-D107 -> 20.02 | F107: 0 | G107: 0 | H107: 2 years | L107: 0.77
A108: Taco Sauce | B108: bottle | C108: 20.02 | D108: 0 | E108: 20.02 | F108: 0 | G108: 0 | H108: 2 years | L108: 0.77
A109: Tiny Taters | B109: can | C109: 9.984 | D109: 0 | E109: 9.984 | F109: 0 | G109: 0 | H109: 2 years | L109: 0.384
A110: Tomato Paste | B110: jar | C110: 9.984 | D110: 0 | E110: 9.984 | F110: 0 | G110: 0 | H110: 2 years | L110: 0.384
A111: Tomatoes, Italian | B111: can | C111: 9.984 | D111: 0 | E111: 9.984 | F111: 0 | G111: 0 | H111: 2 years | L111: 0.384
A112: Tomatoes, peeled | B112: can | C112: 20.02 | D112: 0 | E112: 20.02 | F112: 0 | G112: 0 | H112: 2 years | L112: 0.77
A113: Water Chestnuts | B113: can | C113: 5.018 | D113: 0 | E113: 5.018 | F113: 0 | G113: 0 | H113: 3-4 years | L113: 0.193
A114: Other | B114: can | C114: 5.018 | D114: 0 | E114: 5.018 | F114: 0 | G114: 0 | L114: 0.193
A115: Other | B115: can | C115: 0 | D115: 0 | E115: 0 | F115: 0 | G115: 0
A117: Soup - Select 125 servings, per adult serve, for 6 months (depending on variety can be meat, vegetable, starch and/or milk)
A118: Dry Soup Mix, single serve | B118: pkg | C118: =L118*$C$521*$B$524 -> 26 | D118: 0 | E118: =C118-D118 -> 26 | F118: 0 | G118: =D118*F118 -> 0 | H118: 1 year | L118: 1
A119: Soup, condensed, serves 2 | B119: can | C119: =L119*$C$521*$B$524 -> 26 | D119: 0 | E119: =C119-D119 -> 26 | F119: 0 | G119: =D119*F119 -> 0 | H119: 2 - 3 years | L119: 1
A120: Soup, ready to eat, single serve | B120: can | C120: =L120*$C$521*$B$524 -> 40.04 | D120: 0 | E120: =C120-D120 -> 40.04 | F120: 0 | G120: =D120*F120 -> 0 | H120: 2 - 3 years | L120: 1.54
A121: Other | B121: pkg | C121: =L121*$C$521*$B$524 -> 5.018 | D121: 0 | E121: =C121-D121 -> 5.018 | F121: 0 | G121: =D121*F121 -> 0 | L121: 0.193
A122: Other | B122: pkg | C122: =L122*$C$521*$B$524 -> 5.018 | D122: 0 | E122: =C122-D122 -> 5.018 | F122: 0 | G122: =D122*F122 -> 0 | L122: 0.193
A124: Bouillon - Select 1 pound, per adult serve, for 6 months
A125: Broth, Beef, powdered | B125: can | C125: =L125*$C$521*$B$524 -> 7.8 | D125: 0 | E125: =C125-D125 -> 7.8 | F125: 0 | G125: =D125*F125 -> 0 | H125: 2 years | L125: 0.3
A126: Broth, Chicken, powdered | B126: can | C126: =L126*$C$521*$B$524 -> 7.8 | D126: 0 | E126: =C126-D126 -> 7.8 | F126: 0 | G126: =D126*F126 -> 0 | H126: 2 years | L126: 0.3
A127: Other | B127: can | C127: =L127*$C$521*$B$524 -> 7.8 | D127: 0 | E127: =C127-D127 -> 7.8 | F127: 0 | G127: =D127*F127 -> 0 | L127: 0.3
C128: =L128*$C$521*$B$524 -> 0 | D128: 0 | E128: =C128-D128 -> 0 | F128: 0 | G128: =D128*F128 -> 0
A130: FRUIT GROUP
A131: Fruits - Select 625 servings, per adult serve, for 6 months
A132: Apple Slices, canned | B132: can | C132: =L132*$C$521*$B$524 -> 10.01 | D132: 0 | E132: =C132-D132 -> 10.01 | F132: 0 | G132: =D132*F132 -> 0 | H132: 2 years | L132: 0.385
A133: Applesauce | B133: jar | C133: 10.01 | D133: 0 | E133: 10.01 | F133: 0 | G133: 0 | H133: 3 years | L133: 0.385
A134: Banana, Dried Chips | B134: pound | C134: 5.018 | D134: 0 | E134: 5.018 | F134: 0 | G134: 0 | H134: 8 months | L134: 0.193
A135: Blueberries, canned | B135: can | C135: 5.018 | D135: 0 | E135: 5.018 | F135: 0 | G135: 0 | H135: 2 years | L135: 0.193
A136: Cherries, jar | B136: jars | C136: 5.018 | D136: 0 | E136: 5.018 | F136: 0 | G136: 0 | H136: 2 years | L136: 0.193
A137: Fruit Salad/Cocktail, canned | B137: can | C137: 10.01 | D137: 0 | E137: 10.01 | F137: 0 | G137: 0 | H137: 2 years | L137: 0.385
A138: Fruit Juice | B138: can | C138: 10.01 | D138: 0 | E138: 10.01 | F138: 0 | G138: 0 | H138: 2 years | L138: 0.385
A139: Oranges, Mandarin | B139: can | C139: 20.02 | D139: 0 | E139: 20.02 | F139: 0 | G139: 0 | H139: 2 years | L139: 0.77
A140: Peach, slices, canned | B140: servings | C140: 10.01 | D140: 0 | E140: 10.01 | F140: 0 | G140: 0 | H140: 18 months | L140: 0.385
A141: Pear halves, canned | B141: can | C141: 10.01 | D141: 0 | E141: 10.01 | F141: 0 | G141: 0 | H141: 3 years+ | L141: 0.385
A142: Pie Filling | B142: can | C142: 10.01 | D142: 0 | E142: 10.01 | F142: 0 | G142: 0 | H142: 2-3 years | L142: 0.385
A143: Pineapple, Crushed | B143: can | C143: 10.01 | D143: 0 | E143: 10.01 | F143: 0 | G143: 0 | H143: 3 years+ | L143: 0.385
A144: Pineapple Juice | B144: can | C144: 10.01 | D144: 0 | E144: 10.01 | F144: 0 | G144: 0 | H144: 1-2 years | L144: 0.385
A145: Pineapple, Pieces | B145: can | C145: 10.01 | D145: 0 | E145: 10.01 | F145: 0 | G145: 0 | H145: 18 months | L145: 0.385
A146: Pineapple, Slices | B146: can | C146: 10.01 | D146: 0 | E146: 10.01 | F146: 0 | G146: 0 | H146: 2 years | L146: 0.385
A147: Raspberries, canned | B147: can | C147: 10.01 | D147: 0 | E147: 10.01 | F147: 0 | G147: 0 | H147: 2 years | L147: 0.385
A148: Strawberries, canned | B148: can | C148: =L148*$C$521*$B$524 -> 10.01 | D148: 0 | E148: =C148-D148 -> 10.01 | F148: 0 | G148: =D148*F148 -> 0 | H148: 2 years | L148: 0.385
A149: Other | B149: can | C149: =L149*$C$521*$B$524 -> 10.01 | D149: 0 | E149: =C149-D149 -> 10.01 | F149: 0 | G149: =D149*F149 -> 0 | L149: 0.385
A150: Other | B150: can | C150: =L150*$C$521*$B$524 -> 10.01 | D150: 0 | E150: =C150-D150 -> 10.01 | F150: 0 | G150: =D150*F150 -> 0 | L150: 0.385
A152: MILK, CHEESE and YOGURT
A153: Milk and Dairy - Select 75 pounds minimum, per adult serve, for 6 months
A154: Cheese, Processed | B154: lb | C154: =L154*$C$521*$B$524 -> 6.006 | D154: 0 | E154: =C154-D154 -> 6.006 | F154: 0 | G154: =D154*F154 -> 0 | H154: 9 months | L154: 0.231
A155: Coffee Mate | B155: can | C155: 2.002 | D155: 0 | E155: 2.002 | F155: 0 | G155: 0 | H155: 2 years | L155: 0.077
A156: Milk, Full Cream, powdered | B156: can | C156: 6.006 | D156: 0 | E156: 6.006 | F156: 0 | G156: 0 | H156: 2 years | L156: 0.231
A157: Milk, Non-fat, dry | B157: lb | C157: 40.04 | D157: 0 | E157: 40.04 | F157: 0 | G157: 0 | H157: 2 years | L157: 1.54
A158: Milk, Shelf Stable | B158: boxes | C158: =L158*$C$521*$B$524 -> 20.02 | D158: 0 | E158: =C158-D158 -> 20.02 | F158: 0 | G158: 0 | H158: 6 months | L158: 0.77
A159: Parmesan, grated | B159: can | C159: 6.006 | D159: 0 | E159: 6.006 | F159: 0 | G159: 0 | H159: 9 months | L159: 0.231
A160: Other | B160: lb | C160: 6.006 | D160: 0 | E160: 6.006 | F160: 0 | G160: 0 | L160: 0.231
A161: Other | B161: lb | C161: 6.006 | D161: 0 | E161: 6.006 | F161: 0 | G161: 0 | L161: 0.231
A163: Canned Milk - Select 12 cans minimum, per adult serve, for 6 months
A164: Evaporated milk (cans) | B164: can | C164: =L164*$C$521*$B$524 -> 6.006 | D164: 0 | E164: =C164-D164 -> 6.006 | F164: 0 | G164: =D164*F164 -> 0 | H164: 1 year | L164: 0.231
A165: Sweetened Condensed Milk | B165: can | C165: =L165*$C$521*$B$524 -> 6.006 | D165: 0 | E165: =C165-D165 -> 6.006 | F165: 0 | G165: =D165*F165 -> 0 | H165: 1 year | L165: 0.231
A167: FATS, OILS and SWEETS GROUP
A168: Oils, Fats and Shortening - Select 7.5 gallons/30 pounds, per adult serve, for 6 months
A169: Corn Oil | B169: quart | C169: =L169*$C$521*$B$524 -> 1.04 | D169: 0 | E169: =C169-D169 -> 1.04 | F169: 0 | G169: =D169*F169 -> 0 | H169: 2 years | L169: 0.04
A170: Crisco, solid, butter flavor | B170: 3 pound | C170: 1.04 | D170: 0 | E170: 1.04 | F170: 0 | G170: 0 | H170: 18 months | L170: 0.04
A171: Crisco, solid, plain | B171: 3 pound | C171: 1.04 | D171: 0 | E171: 1.04 | F171: 0 | G171: 0 | H171: 2 years | L171: 0.04
A172: Mayonnaise | B172: quart | C172: 1.04 | D172: 0 | E172: 1.04 | F172: 0 | G172: 0 | H172: 6 months | L172: 0.04
A173: Olive Oil | B173: gallon | C173: 4.03 | D173: 0 | E173: 4.03 | F173: 0 | G173: 0 | H173: 6-9 months | L173: 0.155
A174: Pure & Simple/Pam | B174: cans | C174: 2.002 | D174: 0 | E174: 2.002 | F174: 0 | G174: 0 | H174: 18 months | L174: 0.077
A175: Salad Dressing | B175: bottle | C175: 4.03 | D175: 0 | E175: 4.03 | F175: 0 | G175: 0 | H175: 1 year | L175: 0.155
C176: 0 | D176: 0 | E176: 0 | F176: 0 | G176: 0
C177: 0 | D177: 0 | E177: 0 | F177: 0 | G177: 0
A179: Honey, Sugar and Syrup - Select 50 pounds minimum, per adult serve, for 6 months
A180: Equal | B180: box (500 ct.) | C180: =L180*$C$521*$B$524 -> 1.04 | D180: 0 | E180: =C180-D180 -> 1.04 | F180: 0 | G180: =D180*F180 -> 0 | H180: 2 years | L180: 0.04
A181: Corn Syrup | B181: quart | C181: 6.006 | D181: 0 | E181: 6.006 | F181: 0 | G181: 0 | H181: 1 year | L181: 0.231
A182: Honey | B182: pound | C182: 6.006 | D182: 0 | E182: 6.006 | F182: 0 | G182: 0 | H182: 1 year | L182: 0.231
A183: Maple Syrup | B183: bottles | C183: 6.006 | D183: 0 | E183: 6.006 | F183: 0 | G183: 0 | H183: 2 years | L183: 0.231
A184: Molasses | B184: bottles | C184: 6.006 | D184: 0 | E184: 6.006 | F184: 0 | G184: 0 | H184: 1 year | L184: 0.231
A185: Sugar, brown | B185: pound | C185: 10.01 | D185: 0 | E185: 10.01 | F185: 0 | G185: 0 | H185: 6 months | L185: 0.385
A186: Sugar, granulated | B186: pound | C186: 20.02 | D186: 0 | E186: 20.02 | F186: 0 | G186: 0 | H186: 2 years | L186: 0.77
A187: Sugar, powdered | B187: pound | C187: 6.006 | D187: 0 | E187: 6.006 | F187: 0 | G187: 0 | H187: 2 years | L187: 0.231
A188: Other | C188: 0 | D188: 0 | E188: 0 | F188: 0 | G188: 0
A189: Other | C189: 0 | D189: 0 | E189: 0 | F189: 0 | G189: 0
A191: MISCELLANEOUS FOOD ITEMS
A193: COMFORT FOODS - Select as desired
A194: Cake/Brownie Mix | B194: box | C194: =L194*$C$521*$B$524 -> 2.002 | D194: 0 | E194: =C194-D194 -> 2.002 | F194: 0 | G194: =D194*F194 -> 0 | H194: 9 months | L194: 0.077
A195: Chewing Gum, Bubblegum Extra | B195: pkg | C195: 10.01 | D195: 0 | E195: 10.01 | F195: 0 | G195: 0 | H195: 12 months | L195: 0.385
A196: Chewing Gum, Juicy Fruit | B196: pkg | C196: 10.01 | D196: 0 | E196: 10.01 | F196: 0 | G196: 0 | H196: 12 months | L196: 0.385
A197: Chewing Gum, Wrigley's Spearmint | B197: pkg | C197: 10.01 | D197: 0 | E197: 10.01 | F197: 0 | G197: 0 | H197: 12 months | L197: 0.385
A198: Chocolate Bars, depending on ingredients | B198: each | C198: 10.01 | D198: 0 | E198: 10.01 | F198: 0 | G198: 0 | H198: 1 year +/- | L198: 0.385
A199: Chocolate Chips | B199: pkg | C199: 4.992 | D199: 0 | E199: 4.992 | F199: 0 | G199: 0 | H199: 2 years | L199: 0.192
A200: Chocolate Melts | B200: pkg | C200: 2.002 | D200: 0 | E200: 2.002 | F200: 0 | G200: 0 | H200: 18 months | L200: 0.077
A201: Crackers, Misc. | B201: box | C201: 2.002 | D201: 0 | E201: 2.002 | F201: 0 | G201: 0 | H201: 8 months | L201: 0.077
A202: Crackers, Ritz | B202: box | C202: 2.002 | D202: 0 | E202: 2.002 | F202: 0 | G202: 0 | H202: 8 months | L202: 0.077
A203: Hard Candy | B203: bag | C203: 2.002 | D203: 0 | E203: 2.002 | F203: 0 | G203: 0 | H203: 2 years | L203: 0.077
A204: Muffin Mix | B204: box of 12 | C204: 2.002 | D204: 0 | E204: 2.002 | F204: 0 | G204: 0 | H204: 9 months | L204: 0.077
A205: Pancake Mix | B205: box | C205: 2.002 | D205: 0 | E205: 2.002 | F205: 0 | G205: 0 | H205: 6-9 months | L205: 0.077
A206: Pudding, canned | B206: each | C206: 20.02 | D206: 0 | E206: 20.02 | F206: 0 | G206: 0 | H206: 1-2 years | L206: 0.77
A207: Pudding, Vanilla/Chocolate | B207: box | C207: 4.992 | D207: 0 | E207: 4.992 | F207: 0 | G207: 0 | H207: 1 year | L207: 0.192
A208: Saltines, Regular | B208: box | C208: 4.992 | D208: 0 | E208: 4.992 | F208: 0 | G208: 0 | H208: 8 months | L208: 0.192
A209: Saltines, Wholemeal | B209: box | C209: 4.992 | D209: 0 | E209: 4.992 | F209: 0 | G209: 0 | H209: 8 months | L209: 0.192
A210: Toaster Pastries | B210: box | C210: =L210*$C$521*$B$524 -> 4.992 | D210: 0 | E210: =C210-D210 -> 4.992 | F210: 0 | G210: =D210*F210 -> 0 | H210: 2-3 months | L210: 0.192
A211: Other | C211: =L211*$C$521*$B$524 -> 0 | D211: 0 | E211: =C211-D211 -> 0 | F211: 0 | G211: =D211*F211 -> 0
A212: Other | C212: =L212*$C$521*$B$524 -> 0 | D212: 0 | E212: =C212-D212 -> 0 | F212: 0 | G212: =D212*F212 -> 0
A214: BAKING ITEMS
A216: LEAVENING AGENTS - Select 1 pound, per adult serve, for 6 months
A217: Baking Powder | B217: box | C217: =L217*$C$521*$B$524 -> 2.002 | D217: 0 | E217: =C217-D217 -> 2.002 | F217: 0 | G217: =D217*F217 -> 0 | H217: 2 years | L217: 0.077
A218: Baking Soda | B218: box | C218: 2.002 | D218: 0 | E218: 2.002 | F218: 0 | G218: 0 | H218: 2 years | L218: 0.077
A219: Bread Improver | B219: box = 15 loaves | C219: 2.002 | D219: 0 | E219: 2.002 | F219: 0 | G219: 0 | H219: 18 months | L219: 0.077
... 326 more rows
